Workbook

Sheet 2024 FALL CALCULATOR
J1: =U13 -> Fall Solutions National Large Lawn Calculator - version 2024-0011-0002
B3: =IF(C22="National", "NATIONAL", IF(C22="CA","CALIFORNIA","WASHINGTON")) -> NATIONAL | C3: =B3& " 2024 Fall SOLUTIONS LARGE LAWN CALCULATOR" -> NATIONAL 2024 Fall SOLUTIONS LARGE LAWN CALCULATOR
U5: 2024-0011-0002
U13: ="Fall Solutions National Large Lawn Calculator - version " & U5 -> Fall Solutions National Large Lawn Calculator - version 2024-0011-0002
AK15: TOTAL PURCHASE REBATE | AQ15: TOTAL PURCHASE REBATE | AR15: Rebate
B16: NAME YOUR DRAFT ORDER HERE: | AK16: MINIMUM QTY | AL16: MAXIMUM QTY | AM16: REBATE % | AQ16: Date Start | AR16: 2024-08-01
B17: Description: | AK17: 5000 | AL17: 13999 | AM17: 0.03 | AQ17: Date end | AR17: 2024-10-30
B18: Dist/DSR: | Y18: ADMIN COLUMNS | AK18: 14000 | AL18: 22499 | AM18: 0.04 | AQ18: Rebate | AR18: =IF(AND(TODAY() >AR16, TODAY() < AR17),0.01,0) -> 0 | AS18: If Purchase tier rebate > 7% then Early Pay 0%
B19: MER#: | AK19: 22500 | AL19: 31499 | AM19: 0.05
B20: Last Updated: | AK20: 31500 | AL20: 39999 | AM20: 0.06
B21: Created For: | AK21: 40000 | AL21: 48499 | AM21: 0.08
B22: Region: | C22: National | AK22: 48500 | AL22: 999999.99 | AM22: 0.09
F23: HIDE | G23: HIDE | X23: HIDE | Z23: HIDE | AK23: HIDE | AL23: HIDE | AM23: HIDE | AN23: HIDE | AO23: HIDE | AP23: HIDE | AQ23: HIDE | AR23: HIDE | AS23: HIDE | AT23: HIDE | AU23: HIDE | AV23: HIDE | AW23: HIDE | AX23: HIDE | AY23: HIDE
X24: SELECT REBATE | Z24: PAIRING REBATE | AC24: SPECTICLE FLO LOYALTY BONUS | AF24: MIRACAST | AI24: LARGE LAWN | AK24: PURCHASE TIER REBATE
B25: REBATE FINDER. (Minimum Program Purchase to receive rebates is $5,000) | C25: PRODUCT NAME | D25: UNIT SIZE | E25: # UNITS | F25: INSEASON PRICE | G25: INSEASON SUBTOTAL | H25: PRICE/ UNIT* | I25: INVOICE SUBTOTAL ($5,000 minimum across NOW/FALL program to receive rebates) | J25: SELECT REBATES**† | K25: PAIRING REBATES**† | L25: SPECTICLE FLO LOYALTY BONUS**† | M25: Specticle Flo Large Lawn User Rebate **† | N25: PURCHASE TIER REBATE**† | O25: NET PRICE/UNIT (all rebates, incl. purchase tier) | P25: TOTAL AFTER REBATE | Q25: USE RATE / 1,000 FT2 | R25: INTENDED/ ACRE USE RATE | S25: TOTAL ACRES TREATED | T25: COST/ ACRE | U25: COST/ 1,000 FT2 | X25: Required Qty | Y25: Rebate | Z25: Required Qty | AA25: Qualify? | AB25: Rebate | AC25: Brands Qualifying | AD25: Total Brands/ Specticle Tier | AE25: Specticle Bonus | AK25: Aug - Oct Early Pay Bonus | AL25: Purchase Tier Rebate | AM25: Total must be > $5000 to qualify for rebates | AV25: National Price | AW25: National invoice for rebate calculations
AO26: Specticle FLO Loyalty Bonus Matrix
L27: =IFERROR(_xlfn.XLOOKUP($AD$55,$AO$31:$AO$34,_xlfn.XLOOKUP(AD32,$AP$27:$AR$27,$AP$31:$AR$34)),0) -> 0 | N27: =IF(AND(I91<>"",I91> 0,AL91>0),IF(AL91>0.07,AL91,(AL91+$AR$18)),0) -> 0 | AO27: Tiers/Brands | AP27: 1 | AQ27: 2 | AR27: 3
B28: Purchase Tier | C28: Altus (64 fl.oz. bottle), 1-15 | D28: 64 fl oz | F28: =INDEX(Pricing!$E$5:$G$100,MATCH('2024 FALL CALCULATOR'!$C28,Pricing!$A$5:$A$100,0),MATCH($C$22,Pricing!$E$4:$G$4,0)) -> 428.4 | G28: =IF(ISERROR(E28*F28),"",E28*F28) -> 0 | H28: =INDEX(Pricing!$A$5:$D$100,MATCH('2024 FALL CALCULATOR'!$C28,Pricing!$A$5:$A$100,0),MATCH($C$22,Pricing!$A$4:$D$4,0)) -> 428.4 | I28: =IF(ISERROR(E28*H28),0,E28*H28) -> 0 | N28: =IF(OR(AV28 ="",AK28+AL28=0),0,E28*AV28*(AK28+AL28)) -> 0 | O28: =IF(AND(E28<>"",E28>0),((I28/E28)-((J28+K28+L28+N28)/E28)),"") ->  | P28: =IF(AND(E28<>"",E28>0), E28*O28,"") ->  | Q28: =R28/43.56 -> 0.160697888 | R28: 7 | S28: =IF(AND(TRIM(R28)<>"",TRIM(E28)<>""),(E28*64)/R28,"") ->  | T28: =IF(E28<>0,P28/S28,0) -> 0 | U28: =T28/43.56 -> 0 | AK28: =IF(AND(E28 <>"",AM$91>=5000,AL$91<=0.07),0.01,0) -> 0 | AL28: =IF(E28 <>"", AL$91,0) -> 0 | AM28: =IF(E28 = "",0,IFERROR(H28*E28,0)) -> 0 | AV28: =INDEX(Pricing!$A$5:$D$100,MATCH('2024 FALL CALCULATOR'!$C28,Pricing!$A$5:$A$100,0),MATCH("National",Pricing!$A$4:$D$4,0)) -> 428.4 | AW28: =AV28*E28 -> 0
B29: Purchase Tier | C29: Altus (64 fl.oz. bottle), 16-31 | D29: 64 fl oz | F29: =INDEX(Pricing!$E$5:$G$100,MATCH('2024 FALL CALCULATOR'!$C29,Pricing!$A$5:$A$100,0),MATCH($C$22,Pricing!$E$4:$G$4,0)) -> 428.4 | G29: =IF(ISERROR(E29*F29),"",E29*F29) -> 0 | H29: =INDEX(Pricing!$A$5:$D$100,MATCH('2024 FALL CALCULATOR'!$C29,Pricing!$A$5:$A$100,0),MATCH($C$22,Pricing!$A$4:$D$4,0)) -> 406.98 | I29: 0 | N29: 0 | P29: =IF(AND(E29<>"",E29>0), E29*O29,"") ->  | Q29: =R29/43.56 -> 0.160697888 | R29: 7 | S29: =IF(AND(TRIM(R29)<>"",TRIM(E29)<>""),(E29*64)/R29,"") ->  | T29: =IF(E29<>0,P29/S29,0) -> 0 | U29: 0 | AK29: 0 | AL29: 0 | AM29: 0 | AV29: =INDEX(Pricing!$A$5:$D$100,MATCH('2024 FALL CALCULATOR'!$C29,Pricing!$A$5:$A$100,0),MATCH("National",Pricing!$A$4:$D$4,0)) -> 406.98 | AW29: 0
B30: Purchase Tier | C30: Altus (64 fl.oz. bottle), 32+ | D30: 64 fl oz | F30: =INDEX(Pricing!$E$5:$G$100,MATCH('2024 FALL CALCULATOR'!$C30,Pricing!$A$5:$A$100,0),MATCH($C$22,Pricing!$E$4:$G$4,0)) -> 428.4 | G30: 0 | H30: =INDEX(Pricing!$A$5:$D$100,MATCH('2024 FALL CALCULATOR'!$C30,Pricing!$A$5:$A$100,0),MATCH($C$22,Pricing!$A$4:$D$4,0)) -> 385.56 | I30: 0 | N30: 0 | P30: =IF(AND(E30<>"",E30>0), E30*O30,"") ->  | Q30: =R30/43.56 -> 0.160697888 | R30: 7 | T30: =IF(E30<>0,P30/S30,0) -> 0 | U30: 0 | AK30: 0 | AL30: 0 | AM30: 0 | AV30: =INDEX(Pricing!$A$5:$D$100,MATCH('2024 FALL CALCULATOR'!$C30,Pricing!$A$5:$A$100,0),MATCH("National",Pricing!$A$4:$D$4,0)) -> 385.56 | AW30: 0
B31: $25 Select for 2+/$75 for 2+ Pairing with 12+ Signature or 24+ Signature XTRA | C31: Banol® | D31: 2.5 gal. bottle | F31: =INDEX(Pricing!$E$5:$G$100,MATCH('2024 FALL CALCULATOR'!$C31,Pricing!$A$5:$A$100,0),MATCH($C$22,Pricing!$E$4:$G$4,0)) -> 1254 | G31: 0 | H31: =INDEX(Pricing!$A$5:$D$100,MATCH('2024 FALL CALCULATOR'!$C31,Pricing!$A$5:$A$100,0),MATCH($C$22,Pricing!$A$4:$D$4,0)) -> 1254 | I31: =IF(ISERROR(E31*H31),0,E31*H31) -> 0 | J31: =IF(OR(E31 ="",E31<X31,X31=0),0,E31*Y31) -> 0 | K31: =IF(OR(E31 ="",E31<Z31,AA31="No",Z31=0),0,E31*AB31) -> 0 | N31: 0 | O31: =IF(AND(E31<>"",E31>0),((I31/E31)-((J31+K31+L31+N31)/E31)),"") ->  | P31: =IF(AND(E31<>"",E31>0), E31*O31,"") ->  | Q31: 2 | R31: =Q31*43.56 -> 87.12 | S31: =IF(AND(TRIM(R31)<>"",TRIM(E31)<>""),(E31*319.999849189052)/R31,"") ->  | T31: =IF(E31<>0,P31/S31,0) -> 0 | U31: =T31/43.56 -> 0 | X31: 2 | Y31: 25 | Z31: 2 | AA31: =IF(AND(OR((E34+E35)>=Z35,(E53+E54)>=Z54),E31>=Z31),"Yes","No") -> No | AB31: 75 | AK31: 0 | AL31: 0 | AM31: 0 | AO31: 1 | AP31: 0.0025 | AQ31: 0.005 | AR31: 0.01 | AV31: =INDEX(Pricing!$A$5:$D$100,MATCH('2024 FALL CALCULATOR'!$C31,Pricing!$A$5:$A$100,0),MATCH("National",Pricing!$A$4:$D$4,0)) -> 1254 | AW31: 0
B32: $10 Select for 8+/up to 4% Loyalty Bonus/Tier | C32: Celsius | D32: 10 oz. bottle | F32: =INDEX(Pricing!$E$5:$G$100,MATCH('2024 FALL CALCULATOR'!$C32,Pricing!$A$5:$A$100,0),MATCH($C$22,Pricing!$E$4:$G$4,0)) -> 128.4 | G32: 0 | H32: =INDEX(Pricing!$A$5:$D$100,MATCH('2024 FALL CALCULATOR'!$C32,Pricing!$A$5:$A$100,0),MATCH($C$22,Pricing!$A$4:$D$4,0)) -> 128.4 | I32: =IF(ISERROR(E32*H32),0,E32*H32) -> 0 | J32: =IF(OR(E32 ="",E32<X32,X32=0),0,E32*Y32) -> 0 | L32: =IFERROR(IF(I32*AE32<>0,I32*AE32,0),0) -> 0 | N32: 0 | O32: =IF(AND(E32<>"",E32>0),(H32-(SUM(J32:N32)/E32)),"") ->  | P32: =IF(AND(E32<>"",E32>0), E32*O32,"") ->  | Q32: =R32/43.56 -> 0.1129476584 | R32: 4.92 | S32: =IF(AND(TRIM(R32)<>"",TRIM(E32)<>""),(E32*10)/R32,"") ->  | T32: =IF(E32<>0,P32/S32,0) -> 0 | U32: =T32/43.56 -> 0 | X32: 8 | Y32: 10 | AC32: =IF(E32>=X32,1,0) -> 0 | AD32: =IFERROR(_xlfn.IFS($AC$32+$AC$33+$AC$52+$AC$62>=3,3,$AC$32+$AC$33+$AC$52+$AC$62=2,2,$AC$32+$AC$33+$AC$52+$AC$62=1,1,$AC$32+$AC$33+$AC$52+$AC$62<=0,0),0) -> 0 | AE32: =IFERROR(IF(E32>=X32,(_xlfn.XLOOKUP($AD$55,$AO$31:$AO$34,_xlfn.XLOOKUP(AD32,$AP$27:$AR$27,$AP$31:$AR$34))),0),0) -> 0 | AK32: =IF(AND(E32 <>"",AM$91>=5000,AL$91<=0.07),$AR$18,0) -> 0 | AL32: 0 | AM32: 0 | AO32: 7 | AP32: 0.005 | AQ32: 0.01 | AR32: 0.02 | AV32: =INDEX(Pricing!$A$5:$D$100,MATCH('2024 FALL CALCULATOR'!$C32,Pricing!$A$5:$A$100,0),MATCH("National",Pricing!$A$4:$D$4,0)) -> 128.4 | AW32: 0
B33: $10 Select for 8+/up to 4% Loyalty Bonus/Tier | C33: Celsius XTRA | D33: 10 oz. bottle | F33: =INDEX(Pricing!$E$5:$G$100,MATCH('2024 FALL CALCULATOR'!$C33,Pricing!$A$5:$A$100,0),MATCH($C$22,Pricing!$E$4:$G$4,0)) -> 166.4 | G33: 0 | H33: =INDEX(Pricing!$A$5:$D$100,MATCH('2024 FALL CALCULATOR'!$C33,Pricing!$A$5:$A$100,0),MATCH($C$22,Pricing!$A$4:$D$4,0)) -> 166.4 | I33: 0 | J33: =IF(OR(E33 ="",E33<X33,X33=0),0,E33*Y33) -> 0 | L33: =IFERROR(IF(I33*AE33<>0,I33*AE33,0),0) -> 0 | N33: 0 | O33: =IF(AND(E33<>"",E33>0),(H33-(SUM(J33:N33)/E33)),"") ->  | Q33: =R33/43.56 -> 0.2295684114 | R33: 10 | S33: =IF(AND(TRIM(R33)<>"",TRIM(E33)<>""),(E33*10)/R33,"") ->  | T33: 0 | U33: 0 | X33: 8 | Y33: 10 | AC33: =IF(E33>=X33,1,0) -> 0 | AD33: =IFERROR(_xlfn.IFS($AC$32+$AC$33+$AC$52+$AC$62>=3,3,$AC$32+$AC$33+$AC$52+$AC$62=2,2,$AC$32+$AC$33+$AC$52+$AC$62=1,1,$AC$32+$AC$33+$AC$52+$AC$62<=0,0),0) -> 0 | AE33: =IFERROR(IF(E33>=X33,(_xlfn.XLOOKUP($AD$55,$AO$31:$AO$34,_xlfn.XLOOKUP(AD33,$AP$27:$AR$27,$AP$31:$AR$34))),0),0) -> 0 | AK33: =IF(AND(E33 <>"",AM$91>=5000,AL$91<=0.07),$AR$18,0) -> 0 | AL33: =IF(E33 <>"", AL$91,0) -> 0 | AM33: 0 | AO33: 14 | AP33: 0.0075 | AQ33: 0.015 | AR33: 0.03 | AV33: =INDEX(Pricing!$A$5:$D$100,MATCH('2024 FALL CALCULATOR'!$C33,Pricing!$A$5:$A$100,0),MATCH("National",Pricing!$A$4:$D$4,0)) -> 166.4 | AW33: 0
B34: Purchase Tier | C34: Chipco Signature (1-8 units) | D34: 11 lb. bottle | F34: =INDEX(Pricing!$E$5:$G$100,MATCH('2024 FALL CALCULATOR'!$C34,Pricing!$A$5:$A$100,0),MATCH($C$22,Pricing!$E$4:$G$4,0)) -> 392.8 | G34: 0 | H34: =INDEX(Pricing!$A$5:$D$100,MATCH('2024 FALL CALCULATOR'!$C34,Pricing!$A$5:$A$100,0),MATCH($C$22,Pricing!$A$4:$D$4,0)) -> 392.8 | I34: 0 | N34: 0 | Q34: 4 | R34: =Q34*43.56 -> 174.24 | S34: =IF(AND(TRIM(R34)<>"",TRIM(E34)<>""),(E34*176)/R34,"") ->  | T34: 0 | U34: 0 | AK34: 0 | AL34: 0 | AM34: 0 | AO34: 26 | AP34: 0.01 | AQ34: 0.02 | AR34: 0.04 | AV34: =INDEX(Pricing!$A$5:$D$100,MATCH('2024 FALL CALCULATOR'!$C34,Pricing!$A$5:$A$100,0),MATCH("National",Pricing!$A$4:$D$4,0)) -> 392.8 | AW34: 0
B35: $10 for 12+ with 2+ Banol/Tier | C35: Chipco Signature (9+ units) | D35: 11 lb. bottle | F35: =INDEX(Pricing!$E$5:$G$100,MATCH('2024 FALL CALCULATOR'!$C35,Pricing!$A$5:$A$100,0),MATCH($C$22,Pricing!$E$4:$G$4,0)) -> 392.8 | G35: 0 | H35: =INDEX(Pricing!$A$5:$D$100,MATCH('2024 FALL CALCULATOR'!$C35,Pricing!$A$5:$A$100,0),MATCH($C$22,Pricing!$A$4:$D$4,0)) -> 368.8 | I35: 0 | K35: =IF(OR(E35 ="",E35<Z35,AA35="No",Z35=0),0,E35*AB35) -> 0 | N35: 0 | Q35: 4 | R35: 174.24 | S35: =IF(AND(TRIM(R35)<>"",TRIM(E35)<>""),(E35*176)/R35,"") ->  | T35: 0 | U35: 0 | Z35: 12 | AA35: =IF(AND((E34+E35)>=Z35,E31>=Z31),"Yes","No") -> No | AB35: 10 | AK35: 0 | AL35: 0 | AM35: 0 | AV35: =INDEX(Pricing!$A$5:$D$100,MATCH('2024 FALL CALCULATOR'!$C35,Pricing!$A$5:$A$100,0),MATCH("National",Pricing!$A$4:$D$4,0)) -> 368.8 | AW35: 0
B36: Add 1+ to Greens Health or Snow Mold for $50 pairing rebate/Tier | C36: Castlon™ (1 gal.) | D36: 1 gal. bottle | F36: =INDEX(Pricing!$E$5:$G$100,MATCH('2024 FALL CALCULATOR'!$C36,Pricing!$A$5:$A$100,0),MATCH($C$22,Pricing!$E$4:$G$4,0)) -> 2600 | G36: 0 | H36: =INDEX(Pricing!$A$5:$D$100,MATCH('2024 FALL CALCULATOR'!$C36,Pricing!$A$5:$A$100,0),MATCH($C$22,Pricing!$A$4:$D$4,0)) -> 2600 | I36: 0 | K36: =IF(OR(E36 ="",E36<Z36,AA36="No",Z36=0),0,E36*AB36) -> 0 | N36: 0 | Q36: 0.18 | R36: =Q36*43.56 -> 7.8408 | S36: =IF(AND(TRIM(R36)<>"",TRIM(E36)<>""),(E36*128)/R36,"") ->  | T36: 0 | U36: 0 | Z36: 1 | AA36: =IFERROR(_xlfn.IFS(AND(AA31="Yes",AA35="Yes",E36>=1),"Yes",AND(AA31="Yes",AA54="Yes",E36>=1),"Yes",AND(AA44="Yes",AA47="Yes",E36>=1),"Yes",AND(AA39="Yes",AA61="Yes",E36>=1),"Yes",AND(AA60="Yes",E36>=1),"Yes"),"No") -> No | AB36: 50 | AK36: 0 | AL36: 0 | AM36: 0 | AV36: =INDEX(Pricing!$A$5:$D$100,MATCH('2024 FALL CALCULATOR'!$C36,Pricing!$A$5:$A$100,0),MATCH("National",Pricing!$A$4:$D$4,0)) -> 2600 | AW36: 0
B37: Purchase Tier | C37: Castlon™ (16oz.) | D37: 16 oz. bottle | F37: =INDEX(Pricing!$E$5:$G$100,MATCH('2024 FALL CALCULATOR'!$C37,Pricing!$A$5:$A$100,0),MATCH($C$22,Pricing!$E$4:$G$4,0)) -> 366.5 | G37: 0 | H37: =INDEX(Pricing!$A$5:$D$100,MATCH('2024 FALL CALCULATOR'!$C37,Pricing!$A$5:$A$100,0),MATCH($C$22,Pricing!$A$4:$D$4,0)) -> 366.5 | I37: 0 | N37: 0 | Q37: 0.18 | R37: =Q37*43.56 -> 7.8408 | S37: =IF(AND(TRIM(R37)<>"",TRIM(E37)<>""),(E37*16)/R37,"") ->  | T37: 0 | U37: 0 | AK37: 0 | AL37: 0 | AM37: 0 | AV37: =INDEX(Pricing!$A$5:$D$100,MATCH('2024 FALL CALCULATOR'!$C37,Pricing!$A$5:$A$100,0),MATCH("National",Pricing!$A$4:$D$4,0)) -> 366.5 | AW37: 0
B38: $35 Select 1+/Add 4+ to Greens Health or Snow Mold for $35 pairing rebate/Tier | C38: Densicor® | D38: 51 oz. bottle | F38: =INDEX(Pricing!$E$5:$G$100,MATCH('2024 FALL CALCULATOR'!$C38,Pricing!$A$5:$A$100,0),MATCH($C$22,Pricing!$E$4:$G$4,0)) -> 739.6 | G38: 0 | H38: =INDEX(Pricing!$A$5:$D$100,MATCH('2024 FALL CALCULATOR'!$C38,Pricing!$A$5:$A$100,0),MATCH($C$22,Pricing!$A$4:$D$4,0)) -> 739.6 | I38: 0 | J38: =IF(OR(E38 ="",E38<X38,X38=0),0,E38*Y38) -> 0 | K38: =IF(OR(E38 ="",E38<Z38,AA38="No",Z38=0),0,E38*AB38) -> 0 | N38: 0 | Q38: =0.196 -> 0.196 | R38: 8.53776 | S38: =IF(AND(TRIM(R38)<>"",TRIM(E38)<>""),(E38*51)/R38,"") ->  | T38: 0 | U38: 0 | X38: 1 | Y38: 35 | Z38: 4 | AA38: =IFERROR(_xlfn.IFS(AND(AA31="Yes",AA35="Yes",E38>=Z38),"Yes",AND(AA31="Yes",AA54="Yes",E38>=Z38),"Yes",AND(AA44="Yes",AA47="Yes",E38>=Z38),"Yes",AND(AA39="Yes",AA61="Yes",E38>=Z38),"Yes",AND(AA60="Yes",E38>=Z38),"Yes"),"No") -> No | AB38: 35 | AK38: 0 | AL38: 0 | AM38: 0 | AV38: =INDEX(Pricing!$A$5:$D$100,MATCH('2024 FALL CALCULATOR'!$C38,Pricing!$A$5:$A$100,0),MATCH("National",Pricing!$A$4:$D$4,0)) -> 739.6 | AW38: 0
B39: $45 Pairing Rebate/16+ | C39: Exteris® Stressgard® | D39: 2.5 gal jug | F39: =INDEX(Pricing!$E$5:$G$100,MATCH('2024 FALL CALCULATOR'!$C39,Pricing!$A$5:$A$100,0),MATCH($C$22,Pricing!$E$4:$G$4,0)) -> 366 | G39: 0 | H39: =INDEX(Pricing!$A$5:$D$100,MATCH('2024 FALL CALCULATOR'!$C39,Pricing!$A$5:$A$100,0),MATCH($C$22,Pricing!$A$4:$D$4,0)) -> 366 | I39: 0 | K39: =IF(OR(E39 ="",E39<Z39,AA39="No",Z39=0),0,E39*AB39) -> 0 | N39: 0 | P39: =IF(AND(E39<>"",E39>0), E39*O39,"") ->  | Q39: 4 | R39: 174.24 | S39: =IF(AND(TRIM(R39)<>"",TRIM(E39)<>""),(E39*51)/R39,"") ->  | T39: =IF(E39<>0,P39/S39,0) -> 0 | U39: =T39/43.56 -> 0 | Z39: 16 | AA39: =IF(AND(E39>=Z39,E61>=Z61),"Yes","No") -> No | AB39: 45 | AK39: 0 | AL39: 0 | AM39: 0 | AV39: =INDEX(Pricing!$A$5:$D$100,MATCH('2024 FALL CALCULATOR'!$C39,Pricing!$A$5:$A$100,0),MATCH("National",Pricing!$A$4:$D$4,0)) -> 366 | AW39: 0
B40: $10 Select for 8+ | C40: Fiata® Stressgard® | D40: 2.5 gal jug | F40: =INDEX(Pricing!$E$5:$G$100,MATCH('2024 FALL CALCULATOR'!$C40,Pricing!$A$5:$A$100,0),MATCH($C$22,Pricing!$E$4:$G$4,0)) -> 190 | G40: 0 | H40: =INDEX(Pricing!$A$5:$D$100,MATCH('2024 FALL CALCULATOR'!$C40,Pricing!$A$5:$A$100,0),MATCH($C$22,Pricing!$A$4:$D$4,0)) -> 190 | I40: 0 | J40: =IF(OR(E40 ="",E40<X40,X40=0),0,E40*Y40) -> 0 | N40: 0 | Q40: 5 | R40: 217.8 | T40: 0 | U40: 0 | X40: 8 | Y40: 10 | AK40: 0 | AL40: 0 | AM40: 0 | AV40: =INDEX(Pricing!$A$5:$D$100,MATCH('2024 FALL CALCULATOR'!$C40,Pricing!$A$5:$A$100,0),MATCH("National",Pricing!$A$4:$D$4,0)) -> 190 | AW40: 0
B41: Purchase Tier | C41: Indemnify® (1-2 units) | D41: 17.1 oz. bottle | F41: =INDEX(Pricing!$E$5:$G$100,MATCH('2024 FALL CALCULATOR'!$C41,Pricing!$A$5:$A$100,0),MATCH($C$22,Pricing!$E$4:$G$4,0)) -> 1963.6 | G41: 0 | H41: =INDEX(Pricing!$A$5:$D$100,MATCH('2024 FALL CALCULATOR'!$C41,Pricing!$A$5:$A$100,0),MATCH($C$22,Pricing!$A$4:$D$4,0)) -> 1963.6 | I41: 0 | N41: 0 | Q41: =R41/43.56 -> 0.3900367309 | R41: 16.99 | S41: =IF(AND(TRIM(R41)<>"",TRIM(E41)<>""),(E41*17.1)/R41,"") ->  | T41: 0 | U41: 0 | AK41: 0 | AL41: 0 | AM41: 0 | AV41: =INDEX(Pricing!$A$5:$D$100,MATCH('2024 FALL CALCULATOR'!$C41,Pricing!$A$5:$A$100,0),MATCH("National",Pricing!$A$4:$D$4,0)) -> 1963.6 | AW41: 0
B42: Purchase Tier | C42: Indemnify® (3+ units) | D42: 17.1 oz. bottle | F42: =INDEX(Pricing!$E$5:$G$100,MATCH('2024 FALL CALCULATOR'!$C42,Pricing!$A$5:$A$100,0),MATCH($C$22,Pricing!$E$4:$G$4,0)) -> 1963.6 | G42: 0 | H42: =INDEX(Pricing!$A$5:$D$100,MATCH('2024 FALL CALCULATOR'!$C42,Pricing!$A$5:$A$100,0),MATCH($C$22,Pricing!$A$4:$D$4,0)) -> 1767.2 | I42: 0 | N42: 0 | Q42: =R42/43.56 -> 0.3900367309 | R42: 16.99 | S42: =IF(AND(TRIM(R42)<>"",TRIM(E42)<>""),(E42*17.1)/R42,"") ->  | T42: 0 | U42: 0 | AK42: 0 | AL42: 0 | AM42: 0 | AV42: =INDEX(Pricing!$A$5:$D$100,MATCH('2024 FALL CALCULATOR'!$C42,Pricing!$A$5:$A$100,0),MATCH("National",Pricing!$A$4:$D$4,0)) -> 1767.2 | AW42: 0
B43: Purchase Tier | C43: Interface® Stressgard® (1-5 units) | D43: 2.5 gal. bottle | F43: =INDEX(Pricing!$E$5:$G$100,MATCH('2024 FALL CALCULATOR'!$C43,Pricing!$A$5:$A$100,0),MATCH($C$22,Pricing!$E$4:$G$4,0)) -> 561 | G43: 0 | H43: =INDEX(Pricing!$A$5:$D$100,MATCH('2024 FALL CALCULATOR'!$C43,Pricing!$A$5:$A$100,0),MATCH($C$22,Pricing!$A$4:$D$4,0)) -> 561 | I43: 0 | N43: 0 | Q43: 4 | R43: =Q43*43.56 -> 174.24 | S43: =IF(AND(TRIM(R43)<>"",TRIM(E43)<>""),(E43*319.999849189052)/R43,"") ->  | T43: 0 | U43: 0 | AK43: 0 | AL43: 0 | AM43: 0 | AV43: =INDEX(Pricing!$A$5:$D$100,MATCH('2024 FALL CALCULATOR'!$C43,Pricing!$A$5:$A$100,0),MATCH("National",Pricing!$A$4:$D$4,0)) -> 561 | AW43: 0
B44: $25 Select for 6+, $25 Pairing w/2+ Mirage/Tier | C44: Interface® Stressgard® (6+ units) | D44: 2.5 gal. bottle | F44: =INDEX(Pricing!$E$5:$G$100,MATCH('2024 FALL CALCULATOR'!$C44,Pricing!$A$5:$A$100,0),MATCH($C$22,Pricing!$E$4:$G$4,0)) -> 561 | G44: 0 | H44: =INDEX(Pricing!$A$5:$D$100,MATCH('2024 FALL CALCULATOR'!$C44,Pricing!$A$5:$A$100,0),MATCH($C$22,Pricing!$A$4:$D$4,0)) -> 494 | I44: 0 | J44: =IF(OR(E44 ="",E44<X44,X44=0),0,E44*Y44) -> 0 | K44: =IF(OR(E44 ="",E44<Z44,AA44="No",Z44=0),0,E44*AB44) -> 0 | N44: 0 | Q44: 4 | R44: 174.24 | S44: =IF(AND(TRIM(R44)<>"",TRIM(E44)<>""),(E44*319.999849189052)/R44,"") ->  | T44: 0 | U44: 0 | X44: 6 | Y44: 25 | Z44: 6 | AA44: =IF(AND(E44>=Z44,E47>=Z47),"Yes","No") -> No | AB44: 25 | AK44: 0 | AL44: 0 | AM44: 0 | AV44: =INDEX(Pricing!$A$5:$D$100,MATCH('2024 FALL CALCULATOR'!$C44,Pricing!$A$5:$A$100,0),MATCH("National",Pricing!$A$4:$D$4,0)) -> 494 | AW44: 0
B45: $6.50 Golf FL/SC/TX ONLY Pairing: 12+ Kontos & 4+ Tetrino See State-Level Bermudagrass Mite 24(c) | C45: Kontos (12-29 units) | D45: 250 ml. bottle | F45: =INDEX(Pricing!$E$5:$G$100,MATCH('2024 FALL CALCULATOR'!$C45,Pricing!$A$5:$A$100,0),MATCH($C$22,Pricing!$E$4:$G$4,0)) -> 221.6 | G45: 0 | H45: =INDEX(Pricing!$A$5:$D$100,MATCH('2024 FALL CALCULATOR'!$C45,Pricing!$A$5:$A$100,0),MATCH($C$22,Pricing!$A$4:$D$4,0)) -> 210.52 | I45: 0 | K45: =IF(OR(E45 ="",E45<Z45,AA45="No",Z45=0),0,E45*AB45) -> 0 | R45: 5 | S45: =IF(AND(TRIM(R45)<>"",TRIM(E45)<>""),(E45*8.45)/R45,"") ->  | T45: 0 | U45: 0 | Z45: 12 | AA45: =IF(AND(E63>=Z63,(E45+E46)>=Z46),"Yes","No") -> No | AB45: 6.5 | AK45: 0 | AL45: 0 | AM45: 0 | AV45: =INDEX(Pricing!$A$5:$D$100,MATCH('2024 FALL CALCULATOR'!$C45,Pricing!$A$5:$A$100,0),MATCH("National",Pricing!$A$4:$D$4,0)) -> 210.52 | AW45: 0
C46: Kontos (30+ units) | D46: 250 ml. bottle | F46: =INDEX(Pricing!$E$5:$G$100,MATCH('2024 FALL CALCULATOR'!$C46,Pricing!$A$5:$A$100,0),MATCH($C$22,Pricing!$E$4:$G$4,0)) -> 221.6 | G46: 0 | H46: =INDEX(Pricing!$A$5:$D$100,MATCH('2024 FALL CALCULATOR'!$C46,Pricing!$A$5:$A$100,0),MATCH($C$22,Pricing!$A$4:$D$4,0)) -> 199.44 | I46: 0 | K46: =IF(OR(E46 ="",E46<Z46,AA46="No",Z46=0),0,E46*AB46) -> 0 | R46: 5 | S46: =IF(AND(TRIM(R46)<>"",TRIM(E46)<>""),(E46*8.45)/R46,"") ->  | T46: 0 | U46: 0 | Z46: 12 | AA46: =IF(AND(E63>=Z63,(E45+E46)>=Z46),"Yes","No") -> No | AB46: 6.5 | AK46: 0 | AL46: 0 | AM46: 0 | AV46: =INDEX(Pricing!$A$5:$D$100,MATCH('2024 FALL CALCULATOR'!$C46,Pricing!$A$5:$A$100,0),MATCH("National",Pricing!$A$4:$D$4,0)) -> 199.44 | AW46: 0
B47: $25 2+ Pairing w/6+ Interface, $50 1+ w/1+ Castlon/Tier | C47: Mirage® Stressgard® | D47: 2.5 gal. bottle | F47: =INDEX(Pricing!$E$5:$G$100,MATCH('2024 FALL CALCULATOR'!$C47,Pricing!$A$5:$A$100,0),MATCH($C$22,Pricing!$E$4:$G$4,0)) -> 488 | G47: 0 | H47: =INDEX(Pricing!$A$5:$D$100,MATCH('2024 FALL CALCULATOR'!$C47,Pricing!$A$5:$A$100,0),MATCH($C$22,Pricing!$A$4:$D$4,0)) -> 488 | I47: 0 | K47: =IF(OR(E47 ="",E47<Z47,AA47="No",Z47=0),E47*AH47,E47*(AB47+AH47)) -> 0 | N47: =IF(OR(AV47 ="",AK47+AL47=0),0,E47*AV47*(AK47+AL47)) -> 0 | Q47: 1 | R47: 43.56 | S47: =IF(AND(TRIM(R47)<>"",TRIM(E47)<>""),(E47*319.999849189052)/R47,"") ->  | T47: 0 | U47: 0 | Z47: 2 | AA47: =IF(AND(E44>=Z44,E47>=Z47),"Yes","No") -> No | AB47: 25 | AF47: 1 | AG47: =IF(AND(E47>=AF47,E36>=1),"Yes","No") -> No | AH47: =IF(AG47="Yes",50,0) -> 0 | AK47: 0 | AL47: 0 | AM47: 0 | AV47: =INDEX(Pricing!$A$5:$D$100,MATCH('2024 FALL CALCULATOR'!$C47,Pricing!$A$5:$A$100,0),MATCH("National",Pricing!$A$4:$D$4,0)) -> 488 | AW47: 0
B48: Add 4+ to Greens Health or Snow Mold for $30 pairing rebate/Tier | C48: Resilia ™ | D48: 2.72 gal. bottle | F48: =INDEX(Pricing!$E$5:$G$100,MATCH('2024 FALL CALCULATOR'!$C48,Pricing!$A$5:$A$100,0),MATCH($C$22,Pricing!$E$4:$G$4,0)) -> 918.87 | G48: 0 | H48: =INDEX(Pricing!$A$5:$D$100,MATCH('2024 FALL CALCULATOR'!$C48,Pricing!$A$5:$A$100,0),MATCH($C$22,Pricing!$A$4:$D$4,0)) -> 918.87 | I48: 0 | K48: =IF(OR(E48 ="",E48<Z48,AA48="No",Z48=0),0,E48*AB48) -> 0 | N48: =IF(OR(AV48 ="",AK48+AL48=0),0,E48*AV48*(AK48+AL48)) -> 0 | Q48: 4 | R48: 174.24 | S48: =IF(AND(TRIM(R48)<>"",TRIM(E48)<>""),(E48*348.16)/R48,"") ->  | T48: 0 | U48: 0 | Z48: 4 | AA48: =IFERROR(_xlfn.IFS(AND(AA31="Yes",AA35="Yes",E48>=Z48),"Yes",AND(AA31="Yes",AA54="Yes",E48>=Z48),"Yes",AND(AA44="Yes",AA47="Yes",E48>=Z48),"Yes",AND(AA39="Yes",AA61="Yes",E48>=Z48),"Yes",AND(AA60="Yes",E48>=Z48),"Yes"),"No") -> No | AB48: 30 | AK48: 0 | AL48: 0 | AM48: 0 | AV48: =INDEX(Pricing!$A$5:$D$100,MATCH('2024 FALL CALCULATOR'!$C48,Pricing!$A$5:$A$100,0),MATCH("National",Pricing!$A$4:$D$4,0)) -> 918.87 | AW48: 0
B49: Purchases count towards rebate tier but do not receive purchase tier rebate. | C49: Ronstar® FLO 1 to 11 | D49: 2.5 gal jug | F49: =INDEX(Pricing!$E$5:$G$100,MATCH('2024 FALL CALCULATOR'!$C49,Pricing!$A$5:$A$100,0),MATCH($C$22,Pricing!$E$4:$G$4,0)) -> 552 | G49: 0 | H49: =INDEX(Pricing!$A$5:$D$100,MATCH('2024 FALL CALCULATOR'!$C49,Pricing!$A$5:$A$100,0),MATCH($C$22,Pricing!$A$4:$D$4,0)) -> 552 | I49: =IF(ISERROR(E49*H49),0,E49*H49) -> 0 | Q49: =R49/43.56 -> 2.329889807 | R49: 101.49 | S49: =IF(AND(TRIM(R49)<>"",TRIM(E49)<>""),(E49*319.999849189052)/R49,"") ->  | T49: =IF(E49<>0,P49/S49,0) -> 0 | U49: =T49/43.56 -> 0 | AK49: 0 | AL49: 0 | AM49: 0 | AV49: =INDEX(Pricing!$A$5:$D$100,MATCH('2024 FALL CALCULATOR'!$C49,Pricing!$A$5:$A$100,0),MATCH("National",Pricing!$A$4:$D$4,0)) -> 552 | AW49: 0
C50: Ronstar® FLO 12 to 39 | D50: 2.5 gal jug | F50: =INDEX(Pricing!$E$5:$G$100,MATCH('2024 FALL CALCULATOR'!$C50,Pricing!$A$5:$A$100,0),MATCH($C$22,Pricing!$E$4:$G$4,0)) -> 552 | G50: 0 | H50: =INDEX(Pricing!$A$5:$D$100,MATCH('2024 FALL CALCULATOR'!$C50,Pricing!$A$5:$A$100,0),MATCH($C$22,Pricing!$A$4:$D$4,0)) -> 453 | I50: 0 | Q50: =R50/43.56 -> 2.329889807 | R50: 101.49 | S50: =IF(AND(TRIM(R50)<>"",TRIM(E50)<>""),(E50*319.999849189052)/R50,"") ->  | T50: 0 | U50: 0 | AK50: 0 | AL50: 0 | AM50: 0 | AV50: =INDEX(Pricing!$A$5:$D$100,MATCH('2024 FALL CALCULATOR'!$C50,Pricing!$A$5:$A$100,0),MATCH("National",Pricing!$A$4:$D$4,0)) -> 453 | AW50: 0
C51: Ronstar® FLO 40+ | D51: 2.5 gal jug | F51: =INDEX(Pricing!$E$5:$G$100,MATCH('2024 FALL CALCULATOR'!$C51,Pricing!$A$5:$A$100,0),MATCH($C$22,Pricing!$E$4:$G$4,0)) -> 552 | G51: 0 | H51: =INDEX(Pricing!$A$5:$D$100,MATCH('2024 FALL CALCULATOR'!$C51,Pricing!$A$5:$A$100,0),MATCH($C$22,Pricing!$A$4:$D$4,0)) -> 393 | I51: 0 | Q51: =R51/43.56 -> 2.329889807 | R51: 101.49 | T51: 0 | U51: 0 | AK51: 0 | AL51: 0 | AM51: 0 | AV51: =INDEX(Pricing!$A$5:$D$100,MATCH('2024 FALL CALCULATOR'!$C51,Pricing!$A$5:$A$100,0),MATCH("National",Pricing!$A$4:$D$4,0)) -> 393 | AW51: 0
B52: $35 Select for 4+/up to 4% Loyalty Bonus/Tier | C52: Revolver® (87 oz. bottle) | D52: 87 oz. bottle | F52: =INDEX(Pricing!$E$5:$G$100,MATCH('2024 FALL CALCULATOR'!$C52,Pricing!$A$5:$A$100,0),MATCH($C$22,Pricing!$E$4:$G$4,0)) -> 758 | G52: 0 | H52: =INDEX(Pricing!$A$5:$D$100,MATCH('2024 FALL CALCULATOR'!$C52,Pricing!$A$5:$A$100,0),MATCH($C$22,Pricing!$A$4:$D$4,0)) -> 758 | I52: 0 | J52: =IF(OR(E52 ="",E52<X52,X52=0),0,E52*Y52) -> 0 | L52: =IFERROR(IF(I52*AE52<>0,I52*AE52,0),0) -> 0 | N52: =IF(OR(AV52 ="",AK52+AL52=0),0,E52*AV52*(AK52+AL52)) -> 0 | Q52: =R52/43.56 -> 0.3999081726 | R52: 17.42 | S52: =IF(AND(TRIM(R52)<>"",TRIM(E52)<>""),(E52*87)/R52,"") ->  | T52: 0 | U52: 0 | X52: 4 | Y52: 35 | AC52: =IF(E52>=X52,1,0) -> 0 | AD52: =IFERROR(_xlfn.IFS($AC$32+$AC$33+$AC$52+$AC$62>=3,3,$AC$32+$AC$33+$AC$52+$AC$62=2,2,$AC$32+$AC$33+$AC$52+$AC$62=1,1,$AC$32+$AC$33+$AC$52+$AC$62<=0,0),0) -> 0 | AE52: =IFERROR(IF(E52>=X52,(_xlfn.XLOOKUP($AD$55,$AO$31:$AO$34,_xlfn.XLOOKUP(AD52,$AP$27:$AR$27,$AP$31:$AR$34))),0),0) -> 0 | AK52: 0 | AL52: 0 | AM52: 0 | AV52: =INDEX(Pricing!$A$5:$D$100,MATCH('2024 FALL CALCULATOR'!$C52,Pricing!$A$5:$A$100,0),MATCH("National",Pricing!$A$4:$D$4,0)) -> 758 | AW52: 0
B53: Purchase Tier | C53: Signature XTRA Stressgard (1 to 23) | D53: 5.5 lb bottle | F53: =INDEX(Pricing!$E$5:$G$100,MATCH('2024 FALL CALCULATOR'!$C53,Pricing!$A$5:$A$100,0),MATCH($C$22,Pricing!$E$4:$G$4,0)) -> 210.4 | G53: 0 | H53: =INDEX(Pricing!$A$5:$D$100,MATCH('2024 FALL CALCULATOR'!$C53,Pricing!$A$5:$A$100,0),MATCH($C$22,Pricing!$A$4:$D$4,0)) -> 210.4 | I53: 0 | N53: =IF(OR(AV53 ="",AK53+AL53=0),0,E53*AV53*(AK53+AL53)) -> 0 | Q53: 4 | R53: =Q53*43.56 -> 174.24 | S53: =IF(AND(TRIM(R53)<>"",TRIM(E53)<>""),(E53*87.9999998763089)/R53,"") ->  | T53: 0 | U53: 0 | AK53: 0 | AL53: 0 | AM53: 0 | AV53: =INDEX(Pricing!$A$5:$D$100,MATCH('2024 FALL CALCULATOR'!$C53,Pricing!$A$5:$A$100,0),MATCH("National",Pricing!$A$4:$D$4,0)) -> 210.4 | AW53: 0
B54: $10 for 24+ with 2+ Banol/Tier | C54: Signature XTRA Stressgard (24+) | D54: 5.5 lb bottle | F54: =INDEX(Pricing!$E$5:$G$100,MATCH('2024 FALL CALCULATOR'!$C54,Pricing!$A$5:$A$100,0),MATCH($C$22,Pricing!$E$4:$G$4,0)) -> 210.4 | G54: 0 | H54: =INDEX(Pricing!$A$5:$D$100,MATCH('2024 FALL CALCULATOR'!$C54,Pricing!$A$5:$A$100,0),MATCH($C$22,Pricing!$A$4:$D$4,0)) -> 192.8 | I54: 0 | K54: =IF(OR(E54 ="",E54<Z54,AA54="No",Z54=0),0,E54*AB54) -> 0 | N54: =IF(OR(AV54 ="",AK54+AL54=0),0,E54*AV54*(AK54+AL54)) -> 0 | Q54: 4 | R54: 174.24 | S54: =IF(AND(TRIM(R54)<>"",TRIM(E54)<>""),(E54*87.9999998763089)/R54,"") ->  | T54: 0 | U54: 0 | Z54: 24 | AA54: =IF(AND((E53+E54)>=Z54,E31>=Z31),"Yes","No") -> No | AB54: 10 | AK54: 0 | AL54: 0 | AM54: 0 | AV54: =INDEX(Pricing!$A$5:$D$100,MATCH('2024 FALL CALCULATOR'!$C54,Pricing!$A$5:$A$100,0),MATCH("National",Pricing!$A$4:$D$4,0)) -> 192.8 | AW54: 0
B55: Purchases may earn Loyalty Bonus and count towards rebate tier but do not receive purchase tier rebate. Must be a large Lawn Care Company to qualify for Specticle rebate | C55: Specticle® FLO (1-6 units) | D55: 1 gal. bottle | F55: =INDEX(Pricing!$E$5:$G$100,MATCH('2024 FALL CALCULATOR'!$C55,Pricing!$A$5:$A$100,0),MATCH($C$22,Pricing!$E$4:$G$4,0)) -> 2072 | G55: 0 | H55: =INDEX(Pricing!$A$5:$D$100,MATCH('2024 FALL CALCULATOR'!$C55,Pricing!$A$5:$A$100,0),MATCH($C$22,Pricing!$A$4:$D$4,0)) -> 1968.4 | I55: 0 | L55: =IFERROR(IF(I55*AE55<>0,I55*AE55,0),0) -> 0 | Q55: =R55/43.56 -> 0.1379706152 | R55: 6.01 | S55: =IF(AND(TRIM(R55)<>"",TRIM(E55)<>""),(E55*127.999939675621)/R55,"") ->  | T55: 0 | U55: 0 | AD55: =_xlfn.IFS(E55+E56+E57+E58>=26,26,E55+E56+E57+E58>=14,14,E55+E56+E57+E58>=7,7,E55+E56+E57+E58>=1,1,E55+E56+E57+E58<=0,0) -> 0 | AE55: =IFERROR(IF(E55>=0,(_xlfn.XLOOKUP($AD$55,$AO$31:$AO$34,_xlfn.XLOOKUP($AD$52,$AP$27:$AR$27,$AP$31:$AR$34))),0),0) -> 0 | AK55: 0 | AL55: 0 | AM55: 0 | AV55: =INDEX(Pricing!$A$5:$D$100,MATCH('2024 FALL CALCULATOR'!$C55,Pricing!$A$5:$A$100,0),MATCH("National",Pricing!$A$4:$D$4,0)) -> 1968.4 | AW55: 0
C56: Specticle® FLO (7-13 units) | D56: 1 gal. bottle | F56: =INDEX(Pricing!$E$5:$G$100,MATCH('2024 FALL CALCULATOR'!$C56,Pricing!$A$5:$A$100,0),MATCH($C$22,Pricing!$E$4:$G$4,0)) -> 2072 | G56: 0 | H56: =INDEX(Pricing!$A$5:$D$100,MATCH('2024 FALL CALCULATOR'!$C56,Pricing!$A$5:$A$100,0),MATCH($C$22,Pricing!$A$4:$D$4,0)) -> 1895.88 | I56: 0 | L56: =IFERROR(IF(I56*AE56<>0,I56*AE56,0),0) -> 0 | Q56: 0.1379706152 | R56: 6.01 | S56: =IF(AND(TRIM(R56)<>"",TRIM(E56)<>""),(E56*127.999939675621)/R56,"") ->  | T56: 0 | U56: 0 | AE56: =IFERROR(IF(E56>=0,(_xlfn.XLOOKUP($AD$55,$AO$31:$AO$34,_xlfn.XLOOKUP($AD$52,$AP$27:$AR$27,$AP$31:$AR$34))),0),0) -> 0 | AK56: 0 | AL56: 0 | AM56: 0 | AV56: =INDEX(Pricing!$A$5:$D$100,MATCH('2024 FALL CALCULATOR'!$C56,Pricing!$A$5:$A$100,0),MATCH("National",Pricing!$A$4:$D$4,0)) -> 1895.88 | AW56: 0
C57: Specticle® FLO (14-25 units) | D57: 1 gal. bottle | F57: =INDEX(Pricing!$E$5:$G$100,MATCH('2024 FALL CALCULATOR'!$C57,Pricing!$A$5:$A$100,0),MATCH($C$22,Pricing!$E$4:$G$4,0)) -> 1778.4 | G57: 0 | H57: =INDEX(Pricing!$A$5:$D$100,MATCH('2024 FALL CALCULATOR'!$C57,Pricing!$A$5:$A$100,0),MATCH($C$22,Pricing!$A$4:$D$4,0)) -> 1657.6 | I57: 0 | L57: =IFERROR(IF(I57*AE57<>0,I57*AE57,0),0) -> 0 | Q57: =R57/43.56 -> 0.1379706152 | R57: 6.01 | S57: =IF(AND(TRIM(R57)<>"",TRIM(E57)<>""),(E57*127.999939675621)/R57,"") ->  | T57: 0 | U57: 0 | AE57: =IFERROR(IF(E57>=0,(_xlfn.XLOOKUP($AD$55,$AO$31:$AO$34,_xlfn.XLOOKUP($AD$52,$AP$27:$AR$27,$AP$31:$AR$34))),0),0) -> 0 | AK57: 0 | AL57: 0 | AM57: 0 | AV57: =INDEX(Pricing!$A$5:$D$100,MATCH('2024 FALL CALCULATOR'!$C57,Pricing!$A$5:$A$100,0),MATCH("National",Pricing!$A$4:$D$4,0)) -> 1657.6 | AW57: 0
C58: Specticle® FLO (26+ units) | D58: 1 gal. bottle | F58: =INDEX(Pricing!$E$5:$G$100,MATCH('2024 FALL CALCULATOR'!$C58,Pricing!$A$5:$A$100,0),MATCH($C$22,Pricing!$E$4:$G$4,0)) -> 1778.4 | G58: 0 | H58: =INDEX(Pricing!$A$5:$D$100,MATCH('2024 FALL CALCULATOR'!$C58,Pricing!$A$5:$A$100,0),MATCH($C$22,Pricing!$A$4:$D$4,0)) -> 1533.28 | I58: 0 | L58: =IFERROR(IF(I58*AE58<>0,I58*AE58,0),0) -> 0 | M58: =IFERROR(IF(E58*AJ58<>0,E58*AJ58,0),0) -> 0 | Q58: 0.1379706152 | R58: 6.01 | S58: =IF(AND(TRIM(R58)<>"",TRIM(E58)<>""),(E58*127.999939675621)/R58,"") ->  | T58: 0 | U58: 0 | X58: 26 | AE58: =IFERROR(IF(E58>=0,(_xlfn.XLOOKUP($AD$55,$AO$31:$AO$34,_xlfn.XLOOKUP($AD$52,$AP$27:$AR$27,$AP$31:$AR$34))),0),0) -> 0 | AI58: =IFERROR(_xlfn.IFS(E58>=52,52,E58>=38,38,E58>=26,26),0) -> 0 | AJ58: =IFERROR(_xlfn.IFS(AI58=52,242,AI58=38,182,AI58=26,152),0) -> 0 | AK58: 0 | AL58: 0 | AM58: 0 | AV58: =INDEX(Pricing!$A$5:$D$100,MATCH('2024 FALL CALCULATOR'!$C58,Pricing!$A$5:$A$100,0),MATCH("National",Pricing!$A$4:$D$4,0)) -> 1533.28 | AW58: 0
B59: $11.50 Select for 20+ /Tier | C59: Specticle® G | D59: 50 lb. bag | F59: =INDEX(Pricing!$E$5:$G$100,MATCH('2024 FALL CALCULATOR'!$C59,Pricing!$A$5:$A$100,0),MATCH($C$22,Pricing!$E$4:$G$4,0)) -> 128 | G59: 0 | H59: =INDEX(Pricing!$A$5:$D$100,MATCH('2024 FALL CALCULATOR'!$C59,Pricing!$A$5:$A$100,0),MATCH($C$22,Pricing!$A$4:$D$4,0)) -> 128 | I59: 0 | J59: =IF(OR(E59 ="",E59<X59,X59=0),0,E59*Y59) -> 0 | N59: =IF(OR(AV59 ="",AK59+AL59=0),0,E59*AV59*(AK59+AL59)) -> 0 | R59: 150 | S59: =IF(AND(TRIM(R59)<>"",TRIM(E59)<>""),(E59*50)/R59,"") ->  | T59: =IF(E59<>0,P59/S59,0) -> 0 | U59: 0 | X59: 20 | Y59: 11.5 | AE59: =IFERROR(IF(E59>=0,(_xlfn.XLOOKUP($AD$55,$AO$31:$AO$34,_xlfn.XLOOKUP($AD$52,$AP$27:$AR$27,$AP$31:$AR$34))),0),0) -> 0 | AK59: 0 | AL59: 0 | AM59: 0 | AV59: =INDEX(Pricing!$A$5:$D$100,MATCH('2024 FALL CALCULATOR'!$C59,Pricing!$A$5:$A$100,0),MATCH("National",Pricing!$A$4:$D$4,0)) -> 128 | AW59: 0
B60: $20 Select Rebate/2+/Tier | C60: Tartan® Stressgard® (1 to 5 units) | D60: 2.5 gal | F60: =INDEX(Pricing!$E$5:$G$100,MATCH('2024 FALL CALCULATOR'!$C60,Pricing!$A$5:$A$100,0),MATCH($C$22,Pricing!$E$4:$G$4,0)) -> 1033 | G60: 0 | H60: =INDEX(Pricing!$A$5:$D$100,MATCH('2024 FALL CALCULATOR'!$C60,Pricing!$A$5:$A$100,0),MATCH($C$22,Pricing!$A$4:$D$4,0)) -> 1033 | I60: =IF(ISERROR(E60*H60),0,E60*H60) -> 0 | J60: =IF(OR(E60 ="",E60<X60,X60=0),0,E60*Y60) -> 0 | N60: =IF(OR(AV60 ="",AK60+AL60=0),0,E60*AV60*(AK60+AL60)) -> 0 | P60: =IF(AND(E60<>"",E60>0), E60*O60,"") ->  | Q60: 1.5 | R60: =Q60*43.56 -> 65.34 | S60: =IF(AND(TRIM(R60)<>"",TRIM(E60)<>""),(E60*319.999849189052)/R60,"") ->  | T60: =IF(E60<>0,P60/S60,0) -> 0 | U60: =T60/43.56 -> 0 | X60: 2 | Y60: 20 | Z60: 2 | AA60: =IF(AND((E60+E61)>=Z60,E48>=Z48),"Yes","No") -> No | AB60: 0 | AE60: =IFERROR(IF(E60>=0,(_xlfn.XLOOKUP($AD$55,$AO$31:$AO$34,_xlfn.XLOOKUP($AD$52,$AP$27:$AR$27,$AP$31:$AR$34))),0),0) -> 0 | AK60: 0 | AL60: 0 | AM60: 0 | AV60: =INDEX(Pricing!$A$5:$D$100,MATCH('2024 FALL CALCULATOR'!$C60,Pricing!$A$5:$A$100,0),MATCH("National",Pricing!$A$4:$D$4,0)) -> 1033 | AW60: 0
B61: $30 Pairing Rebate/6+/Tier | C61: Tartan® Stressgard® 6+ | D61: 2.5 gal | F61: =INDEX(Pricing!$E$5:$G$100,MATCH('2024 FALL CALCULATOR'!$C61,Pricing!$A$5:$A$100,0),MATCH($C$22,Pricing!$E$4:$G$4,0)) -> 1033 | G61: 0 | H61: =INDEX(Pricing!$A$5:$D$100,MATCH('2024 FALL CALCULATOR'!$C61,Pricing!$A$5:$A$100,0),MATCH($C$22,Pricing!$A$4:$D$4,0)) -> 940 | I61: 0 | J61: 0 | K61: =IF(OR(E61 ="",E61<Z61,AA61="No",Z61=0),0,E61*AB61) -> 0 | N61: =IF(OR(AV61 ="",AK61+AL61=0),0,E61*AV61*(AK61+AL61)) -> 0 | Q61: 1.5 | R61: 65.34 | S61: =IF(AND(TRIM(R61)<>"",TRIM(E61)<>""),(E61*319.999849189052)/R61,"") ->  | T61: =IF(E61<>0,P61/S61,0) -> 0 | U61: 0 | X61: 2 | Y61: 20 | Z61: 6 | AA61: =IF(AND(E61>=Z61,E39>=Z39),"Yes","No") -> No | AB61: 30 | AE61: =IFERROR(IF(E61>=0,(_xlfn.XLOOKUP($AD$55,$AO$31:$AO$34,_xlfn.XLOOKUP($AD$52,$AP$27:$AR$27,$AP$31:$AR$34))),0),0) -> 0 | AK61: 0 | AL61: 0 | AM61: 0 | AV61: =INDEX(Pricing!$A$5:$D$100,MATCH('2024 FALL CALCULATOR'!$C61,Pricing!$A$5:$A$100,0),MATCH("National",Pricing!$A$4:$D$4,0)) -> 940 | AW61: 0
B62: $30 Select for 6+/up to 4% Loyalty Bonus/Tier | C62: Tribute® Total | D62: 6 oz. bottle | F62: =INDEX(Pricing!$E$5:$G$100,MATCH('2024 FALL CALCULATOR'!$C62,Pricing!$A$5:$A$100,0),MATCH($C$22,Pricing!$E$4:$G$4,0)) -> 413.6 | G62: 0 | H62: =INDEX(Pricing!$A$5:$D$100,MATCH('2024 FALL CALCULATOR'!$C62,Pricing!$A$5:$A$100,0),MATCH($C$22,Pricing!$A$4:$D$4,0)) -> 413.6 | I62: 0 | J62: =IF(OR(E62 ="",E62<X62,X62=0),0,E62*Y62) -> 0 | L62: =IFERROR(IF(I62*AE62<>0,I62*AE62,0),0) -> 0 | N62: =IF(OR(AV62 ="",AK62+AL62=0),0,E62*AV62*(AK62+AL62)) -> 0 | P62: =IF(AND(E62<>"",E62>0), E62*O62,"") ->  | Q62: 0.02295684114 | R62: 1 | S62: =IF(AND(TRIM(R62)<>"",TRIM(E62)<>""),(E62*6)/R62,"") ->  | T62: 0 | U62: 0 | X62: 6 | Y62: 30 | AC62: =IF(E62>=X62,1,0) -> 0 | AD62: =IFERROR(_xlfn.IFS($AC$32+$AC$33+$AC$52+$AC$62>=3,3,$AC$32+$AC$33+$AC$52+$AC$62=2,2,$AC$32+$AC$33+$AC$52+$AC$62=1,1,$AC$32+$AC$33+$AC$52+$AC$62<=0,0),0) -> 0 | AE62: =IFERROR(IF(E62>=X62,(_xlfn.XLOOKUP($AD$55,$AO$31:$AO$34,_xlfn.XLOOKUP(AD62,$AP$27:$AR$27,$AP$31:$AR$34))),0),0) -> 0 | AK62: 0 | AL62: 0 | AM62: 0 | AV62: =INDEX(Pricing!$A$5:$D$100,MATCH('2024 FALL CALCULATOR'!$C62,Pricing!$A$5:$A$100,0),MATCH("National",Pricing!$A$4:$D$4,0)) -> 413.6 | AW62: 0
B63: $25 Select for 4+/Tier See State-Level Bermudagrass Mite 24C | C63: Tetrino® | D63: 1 gal bottle | F63: =INDEX(Pricing!$E$5:$G$100,MATCH('2024 FALL CALCULATOR'!$C63,Pricing!$A$5:$A$100,0),MATCH($C$22,Pricing!$E$4:$G$4,0)) -> 498 | G63: 0 | H63: =INDEX(Pricing!$A$5:$D$100,MATCH('2024 FALL CALCULATOR'!$C63,Pricing!$A$5:$A$100,0),MATCH($C$22,Pricing!$A$4:$D$4,0)) -> 498 | I63: 0 | J63: =IF(OR(E63 ="",E63<X63,X63=0),0,E63*Y63) -> 0 | K63: =IF(OR(E63 ="",E63<Z63,AA63="No",Z63=0),0,E63*AB63) -> 0 | N63: =IF(OR(AV63 ="",AK63+AL63=0),0,E63*AV63*(AK63+AL63)) -> 0 | R63: 16 | S63: =IF(AND(TRIM(R63)<>"",TRIM(E63)<>""),(E63*127.999939675621)/R63,"") ->  | T63: 0 | U63: 0 | X63: 4 | Y63: 25 | Z63: 4 | AA63: =IF(AND(E63>=Z63,(E45+E46)>=Z46),"Yes","No") -> No | AB63: 15 | AK63: 0 | AL63: 0 | AM63: 0 | AV63: =INDEX(Pricing!$A$5:$D$100,MATCH('2024 FALL CALCULATOR'!$C63,Pricing!$A$5:$A$100,0),MATCH("National",Pricing!$A$4:$D$4,0)) -> 498 | AW63: 0
J65: Non-Agency Products
B66: REBATE FINDER. (Minimum Program Purchase to receive rebates is $5,000) | C66: PRODUCT NAME | D66: UNIT SIZE | E66: # UNITS | F66: INSEASON PRICE | G66: INSEASON SUBTOTAL | H66: PRICE/ UNIT* | I66: INVOICE SUBTOTAL ($5,000 minimum across NOW/FALL program to receive rebates) | J66: SELECT REBATES**† | K66: PAIRING REBATES**† | L66: SPECTICLE FLO LOYALTY BONUS**† | M66: Specticle Flo Large Lawn User Rebate **† | N66: PURCHASE TIER REBATE**† | O66: NET PRICE/UNIT (all rebates, incl. purchase tier) | P66: TOTAL AFTER REBATE | Q66: USE RATE / 1,000 FT2 | R66: INTENDED/ACRE USE RATE | S66: TOTAL ACRES TREATED | T66: COST/ ACRE | U66: COST/ 1,000 FT2 | AV66: National Price | AW66: National invoice for rebate calculations | AX66: Dist Suggested Min Price (DSMP) | AY66: DSMP invoice for rebate calculations
L68: =L27 -> 0 | N68: =N27 -> 0
B69: $24 Select 1+/Tier | C69: Armada® 50 WDG | D69: 2 lb. bottle | F69: =INDEX(Pricing!$E$5:$G$101,MATCH('2024 FALL CALCULATOR'!$C69,Pricing!$A$5:$A$101,0),MATCH($C$22,Pricing!$E$4:$G$4,0)) -> 114 | G69: =IF(ISERROR(E69*F69),"",E69*F69) -> 0 | I69: =IF(E69*H69= 0,0,E69*H69) -> 0 | J69: =IF(OR(E69 ="",E69<X69,X69=0),0,E69*Y69) -> 0 | N69: =IF(OR(AV69 ="",AK69+AL69=0),0,E69*AV69*(AK69+AL69)) -> 0 | O69: =IF(AND(E69<>"",E69>0),(H69-(SUM(J69:N69)/E69)),"") ->  | P69: =IF(AND(E69<>"",E69>0), E69*O69,"") ->  | Q69: =R69/43.56 -> 0.5 | R69: 21.78 | S69: =IF(AND(TRIM(R69)<>"",TRIM(E69)<>""),(E69*127.999939675621)/R69,"") ->  | T69: =IF(I69<>0,P69/S69,0) -> 0 | U69: =T69/43.56 -> 0 | X69: 1 | Y69: 24 | AK69: =IF(AND(E69 <>"",AM$91>=5000,AL$91<=0.07),$AR$18,0) -> 0 | AL69: =IF(E69 <>"", AL$91,0) -> 0 | AM69: =IF(E69 = "",0,IFERROR(F69*E69,0)) -> 0 | AV69: =INDEX(Pricing!$A$5:$D$100,MATCH('2024 FALL CALCULATOR'!$C69,Pricing!$A$5:$A$100,0),MATCH("National",Pricing!$A$4:$D$4,0)) -> 114 | AW69: =AV69*E69 -> 0 | AX69: =INDEX(Pricing!$A$5:$K$100,MATCH('2024 FALL CALCULATOR'!$C69,Pricing!$A$5:$A$100,0),MATCH("Dist Suggested Min Price (DSMP)",Pricing!$A$4:$K$4,0)) -> 0 | AY69: =AX69*E69 -> 0
B70: $90 Select 1+/Tier | C70: Acclaim® Extra (1 gal) | D70: 1 gal. jug | F70: =INDEX(Pricing!$E$5:$G$101,MATCH('2024 FALL CALCULATOR'!$C70,Pricing!$A$5:$A$101,0),MATCH($C$22,Pricing!$E$4:$G$4,0)) -> 665.2 | G70: 0 | I70: =IF(E70*H70= 0,0,E70*H70) -> 0 | J70: =IF(OR(E70 ="",E70<X70,X70=0),0,E70*Y70) -> 0 | N70: =IF(OR(AV70 ="",AK70+AL70=0),0,E70*AV70*(AK70+AL70)) -> 0 | O70: =IF(AND(E70<>"",E70>0),(H70-(SUM(J70:N70)/E70)),"") ->  | P70: =IF(AND(E70<>"",E70>0), E70*O70,"") ->  | Q70: =R70/43.56 -> 0.5 | R70: 21.78 | S70: =IF(AND(TRIM(R70)<>"",TRIM(E70)<>""),(E70*127.999939675621)/R70,"") ->  | T70: =IF(I70<>0,P70/S70,0) -> 0 | U70: 0 | X70: 1 | Y70: 90 | AK70: =IF(AND(E70 <>"",AM$91>=5000,AL$91<=0.07),$AR$18,0) -> 0 | AL70: 0 | AM70: 0 | AV70: =INDEX(Pricing!$A$5:$D$100,MATCH('2024 FALL CALCULATOR'!$C70,Pricing!$A$5:$A$100,0),MATCH("National",Pricing!$A$4:$D$4,0)) -> 665.2 | AW70: 0 | AX70: =INDEX(Pricing!$A$5:$K$100,MATCH('2024 FALL CALCULATOR'!$C70,Pricing!$A$5:$A$100,0),MATCH("Dist Suggested Min Price (DSMP)",Pricing!$A$4:$K$4,0)) -> 0 | AY70: 0
B71: 5% Select/Tier | C71: Acclaim Accelerate (0.5 gal) | D71: .5 gal. jug | F71: =INDEX(Pricing!$E$5:$G$101,MATCH('2024 FALL CALCULATOR'!$C71,Pricing!$A$5:$A$101,0),MATCH($C$22,Pricing!$E$4:$G$4,0)) -> 45.65 | G71: 0 | I71: =IF(E71*H71= 0,0,E71*H71) -> 0 | J71: 0 | N71: =IF(OR(AV71 ="",AK71+AL71=0),0,E71*AX71*(AK71+AL71)) -> 0 | Q71: 1.45 | R71: =Q71*43.56 -> 63.162 | S71: =IF(AND(TRIM(R71)<>"",TRIM(E71)<>""),(E71*64)/R71,"") ->  | T71: 0 | U71: 0 | X71: 1 | Y71: =AX71*0.05 -> 2.75 | AK71: 0 | AL71: 0 | AM71: 0 | AV71: =INDEX(Pricing!$A$5:$D$100,MATCH('2024 FALL CALCULATOR'!$C71,Pricing!$A$5:$A$100,0),MATCH("National",Pricing!$A$4:$D$4,0)) -> 45.65 | AW71: 0 | AX71: =INDEX(Pricing!$A$5:$K$100,MATCH('2024 FALL CALCULATOR'!$C71,Pricing!$A$5:$A$100,0),MATCH("Dist Suggested Min Price (DSMP)",Pricing!$A$4:$K$4,0)) -> 55 | AY71: 0
B72: 5% Select/Tier | C72: Acclaim Accelerate (2.5 gal) | D72: 2.5 gal. jug | F72: =INDEX(Pricing!$E$5:$G$101,MATCH('2024 FALL CALCULATOR'!$C72,Pricing!$A$5:$A$101,0),MATCH($C$22,Pricing!$E$4:$G$4,0)) -> 219.95 | G72: 0 | I72: 0 | J72: 0 | N72: 0 | Q72: 1.45 | R72: 63.162 | S72: =IF(AND(TRIM(R72)<>"",TRIM(E72)<>""),(E72*320)/R72,"") ->  | T72: 0 | U72: 0 | X72: 1 | Y72: =AX72*0.05 -> 13.25 | AK72: 0 | AL72: 0 | AM72: 0 | AV72: =INDEX(Pricing!$A$5:$D$100,MATCH('2024 FALL CALCULATOR'!$C72,Pricing!$A$5:$A$100,0),MATCH("National",Pricing!$A$4:$D$4,0)) -> 219.95 | AW72: 0 | AX72: =INDEX(Pricing!$A$5:$K$100,MATCH('2024 FALL CALCULATOR'!$C72,Pricing!$A$5:$A$100,0),MATCH("Dist Suggested Min Price (DSMP)",Pricing!$A$4:$K$4,0)) -> 265 | AY72: 0
B73: 5% Select/Tier | C73: Terradex™ Power Premix (2.5 gal) | D73: 2.5 gal. jug | F73: =INDEX(Pricing!$E$5:$G$101,MATCH('2024 FALL CALCULATOR'!$C73,Pricing!$A$5:$A$101,0),MATCH($C$22,Pricing!$E$4:$G$4,0)) -> 186.75 | G73: 0 | I73: 0 | J73: 0 | N73: 0 | Q73: 1.5 | R73: 65.34 | S73: =IF(AND(TRIM(R73)<>"",TRIM(E73)<>""),(E73*320)/R73,"") ->  | T73: 0 | U73: 0 | X73: 1 | Y73: 11.25 | AK73: 0 | AL73: 0 | AM73: 0 | AV73: =INDEX(Pricing!$A$5:$D$100,MATCH('2024 FALL CALCULATOR'!$C73,Pricing!$A$5:$A$100,0),MATCH("National",Pricing!$A$4:$D$4,0)) -> 186.75 | AW73: 0 | AX73: =INDEX(Pricing!$A$5:$K$100,MATCH('2024 FALL CALCULATOR'!$C73,Pricing!$A$5:$A$100,0),MATCH("Dist Suggested Min Price (DSMP)",Pricing!$A$4:$K$4,0)) -> 225 | AY73: 0
B74: 5% Select/Tier | C74: Terradex™ Power Premix (30 gal) | D74: 30 gal. jug | F74: =INDEX(Pricing!$E$5:$G$101,MATCH('2024 FALL CALCULATOR'!$C74,Pricing!$A$5:$A$101,0),MATCH($C$22,Pricing!$E$4:$G$4,0)) -> 2041.8 | G74: 0 | I74: 0 | J74: 0 | N74: 0 | Q74: 1.5 | R74: 65.34 | S74: =IF(AND(TRIM(R74)<>"",TRIM(E74)<>""),(E74*3840)/R74,"") ->  | T74: 0 | U74: 0 | X74: 1 | Y74: 123 | AK74: 0 | AL74: 0 | AM74: 0 | AV74: =INDEX(Pricing!$A$5:$D$100,MATCH('2024 FALL CALCULATOR'!$C74,Pricing!$A$5:$A$100,0),MATCH("National",Pricing!$A$4:$D$4,0)) -> 2041.8 | AW74: 0 | AX74: =INDEX(Pricing!$A$5:$K$100,MATCH('2024 FALL CALCULATOR'!$C74,Pricing!$A$5:$A$100,0),MATCH("Dist Suggested Min Price (DSMP)",Pricing!$A$4:$K$4,0)) -> 2460 | AY74: 0
B75: 5% Select/Tier | C75: Terradex™ Quick Strike (1 gal) | D75: 1 gal.jug | F75: =INDEX(Pricing!$E$5:$G$101,MATCH('2024 FALL CALCULATOR'!$C75,Pricing!$A$5:$A$101,0),MATCH($C$22,Pricing!$E$4:$G$4,0)) -> 66.4 | G75: 0 | I75: 0 | J75: 0 | N75: 0 | Q75: 1.5 | R75: 65.34 | S75: =IF(AND(TRIM(R75)<>"",TRIM(E75)<>""),(E75*127.999939675621)/R75,"") ->  | T75: 0 | U75: 0 | X75: 1 | Y75: 4 | AK75: 0 | AL75: 0 | AM75: 0 | AV75: =INDEX(Pricing!$A$5:$D$100,MATCH('2024 FALL CALCULATOR'!$C75,Pricing!$A$5:$A$100,0),MATCH("National",Pricing!$A$4:$D$4,0)) -> 66.4 | AW75: 0 | AX75: =INDEX(Pricing!$A$5:$K$100,MATCH('2024 FALL CALCULATOR'!$C75,Pricing!$A$5:$A$100,0),MATCH("Dist Suggested Min Price (DSMP)",Pricing!$A$4:$K$4,0)) -> 80 | AY75: 0
B76: 5% Select/Tier | C76: Terradex™ Quick Strike (2.5 gal) | D76: 2.5 gal. jug | F76: =INDEX(Pricing!$E$5:$G$101,MATCH('2024 FALL CALCULATOR'!$C76,Pricing!$A$5:$A$101,0),MATCH($C$22,Pricing!$E$4:$G$4,0)) -> 157.7 | G76: 0 | I76: 0 | J76: 0 | N76: =IF(OR(AV76 ="",AK76+AL76=0),0,E76*AX76*(AK76+AL76)) -> 0 | Q76: 1.5 | R76: 65.34 | S76: =IF(AND(TRIM(R76)<>"",TRIM(E76)<>""),(E76*320)/R76,"") ->  | T76: 0 | U76: 0 | X76: 1 | Y76: 9.5 | AK76: 0 | AL76: 0 | AM76: 0 | AV76: =INDEX(Pricing!$A$5:$D$100,MATCH('2024 FALL CALCULATOR'!$C76,Pricing!$A$5:$A$100,0),MATCH("National",Pricing!$A$4:$D$4,0)) -> 157.7 | AW76: 0 | AX76: =INDEX(Pricing!$A$5:$K$100,MATCH('2024 FALL CALCULATOR'!$C76,Pricing!$A$5:$A$100,0),MATCH("Dist Suggested Min Price (DSMP)",Pricing!$A$4:$K$4,0)) -> 190 | AY76: 0
B77: 5% Select/Tier | C77: Terradex™ Quick Strike (30 gal) | D77: 30 gal. jug | F77: =INDEX(Pricing!$E$5:$G$101,MATCH('2024 FALL CALCULATOR'!$C77,Pricing!$A$5:$A$101,0),MATCH($C$22,Pricing!$E$4:$G$4,0)) -> 1792.8 | G77: 0 | I77: 0 | J77: 0 | N77: 0 | Q77: 1.5 | R77: 65.34 | S77: =IF(AND(TRIM(R77)<>"",TRIM(E77)<>""),(E77*3840)/R77,"") ->  | T77: 0 | U77: 0 | X77: 1 | Y77: 108 | AK77: 0 | AL77: 0 | AM77: 0 | AV77: =INDEX(Pricing!$A$5:$D$100,MATCH('2024 FALL CALCULATOR'!$C77,Pricing!$A$5:$A$100,0),MATCH("National",Pricing!$A$4:$D$4,0)) -> 1792.8 | AW77: 0 | AX77: =INDEX(Pricing!$A$5:$K$100,MATCH('2024 FALL CALCULATOR'!$C77,Pricing!$A$5:$A$100,0),MATCH("Dist Suggested Min Price (DSMP)",Pricing!$A$4:$K$4,0)) -> 2160 | AY77: 0
B78: 5% Select/Tier | C78: Terradex™ Crabgrass & Broadleaf (1 gal) | D78: 1 gal jug | F78: =INDEX(Pricing!$E$5:$G$101,MATCH('2024 FALL CALCULATOR'!$C78,Pricing!$A$5:$A$101,0),MATCH($C$22,Pricing!$E$4:$G$4,0)) -> 94.62 | G78: 0 | I78: 0 | J78: 0 | N78: 0 | Q78: 2.9 | R78: 126.324 | S78: =IF(AND(TRIM(R78)<>"",TRIM(E78)<>""),(E78*127.999939675621)/R78,"") ->  | T78: 0 | U78: 0 | X78: 1 | Y78: 5.7 | AK78: 0 | AL78: 0 | AM78: 0 | AV78: =INDEX(Pricing!$A$5:$D$100,MATCH('2024 FALL CALCULATOR'!$C78,Pricing!$A$5:$A$100,0),MATCH("National",Pricing!$A$4:$D$4,0)) -> 94.62 | AW78: 0 | AX78: =INDEX(Pricing!$A$5:$K$100,MATCH('2024 FALL CALCULATOR'!$C78,Pricing!$A$5:$A$100,0),MATCH("Dist Suggested Min Price (DSMP)",Pricing!$A$4:$K$4,0)) -> 114 | AY78: 0
B79: 5% Select/Tier | C79: Terradex™ Crabgrass & Broadleaf (2.5 gal) | D79: 2.5 gal.jug | F79: =INDEX(Pricing!$E$5:$G$101,MATCH('2024 FALL CALCULATOR'!$C79,Pricing!$A$5:$A$101,0),MATCH($C$22,Pricing!$E$4:$G$4,0)) -> 226.18 | G79: 0 | I79: 0 | J79: 0 | N79: 0 | Q79: 2.9 | R79: 126.324 | S79: =IF(AND(TRIM(R79)<>"",TRIM(E79)<>""),(E79*320)/R79,"") ->  | T79: 0 | U79: 0 | X79: 1 | Y79: 13.625 | AK79: 0 | AL79: 0 | AM79: 0 | AV79: =INDEX(Pricing!$A$5:$D$100,MATCH('2024 FALL CALCULATOR'!$C79,Pricing!$A$5:$A$100,0),MATCH("National",Pricing!$A$4:$D$4,0)) -> 226.18 | AW79: 0 | AX79: =INDEX(Pricing!$A$5:$K$100,MATCH('2024 FALL CALCULATOR'!$C79,Pricing!$A$5:$A$100,0),MATCH("Dist Suggested Min Price (DSMP)",Pricing!$A$4:$K$4,0)) -> 272.5 | AY79: 0
B80: Purchase Tier | C80: 26 GT® | D80: 2.5 gal. jug | F80: =INDEX(Pricing!$E$5:$G$101,MATCH('2024 FALL CALCULATOR'!$C80,Pricing!$A$5:$A$101,0),MATCH($C$22,Pricing!$E$4:$G$4,0)) -> 503.9 | G80: 0 | I80: 0 | N80: =IF(OR(AV80 ="",AK80+AL80=0),0,E80*AV80*(AK80+AL80)) -> 0 | Q80: 4 | R80: 174.24 | S80: =IF(AND(TRIM(R80)<>"",TRIM(E80)<>""),(E80*319.999849189052)/R80,"") ->  | AK80: 0 | AL80: 0 | AM80: 0 | AV80: =INDEX(Pricing!$A$5:$D$100,MATCH('2024 FALL CALCULATOR'!$C80,Pricing!$A$5:$A$100,0),MATCH("National",Pricing!$A$4:$D$4,0)) -> 503.9 | AW80: 0 | AX80: =INDEX(Pricing!$A$5:$K$100,MATCH('2024 FALL CALCULATOR'!$C80,Pricing!$A$5:$A$100,0),MATCH("Dist Suggested Min Price (DSMP)",Pricing!$A$4:$K$4,0)) -> 0 | AY80: 0
B81: Purchase Tier | C81: Chipco® Choice | D81: 50 lb. bag | F81: 146.5 | G81: 0 | I81: 0 | N81: =IF(OR(AV81 ="",AK81+AL81=0),0,E81*AV81*(AK81+AL81)) -> 0 | R81: 25 | S81: =IF(AND(TRIM(R81)<>"",TRIM(E81)<>""),(E81*50)/R81,"") ->  | AK81: 0 | AL81: 0 | AM81: 0 | AV81: =INDEX(Pricing!$A$5:$D$100,MATCH('2024 FALL CALCULATOR'!$C81,Pricing!$A$5:$A$100,0),MATCH("National",Pricing!$A$4:$D$4,0)) -> 161 | AW81: 0 | AX81: =INDEX(Pricing!$A$5:$K$100,MATCH('2024 FALL CALCULATOR'!$C81,Pricing!$A$5:$A$100,0),MATCH("Dist Suggested Min Price (DSMP)",Pricing!$A$4:$K$4,0)) -> 0 | AY81: 0
B82: Purchase Tier | C82: Dylox 420 SL | D82: 2.5 gal jug | F82: =INDEX(Pricing!$E$5:$G$101,MATCH('2024 FALL CALCULATOR'!$C82,Pricing!$A$5:$A$101,0),MATCH($C$22,Pricing!$E$4:$G$4,0)) -> 218.75 | G82: 0 | I82: 0 | N82: =IF(OR(AV82 ="",AK82+AL82=0),0,E82*AV82*(AK82+AL82)) -> 0 | Q82: 4.59 | R82: 12.5 | S82: =IF(AND(TRIM(R82)<>"",TRIM(E82)<>""),(E82*319.999849189052)/R82,"") ->  | AK82: 0 | AL82: 0 | AM82: 0 | AV82: =INDEX(Pricing!$A$5:$D$100,MATCH('2024 FALL CALCULATOR'!$C82,Pricing!$A$5:$A$100,0),MATCH("National",Pricing!$A$4:$D$4,0)) -> 218.75 | AW82: 0 | AX82: =INDEX(Pricing!$A$5:$K$100,MATCH('2024 FALL CALCULATOR'!$C82,Pricing!$A$5:$A$100,0),MATCH("Dist Suggested Min Price (DSMP)",Pricing!$A$4:$K$4,0)) -> 0 | AY82: 0
B83: Purchase Tier | C83: Forbid® | D83: 8 fl.oz. bottle | F83: =INDEX(Pricing!$E$5:$G$101,MATCH('2024 FALL CALCULATOR'!$C83,Pricing!$A$5:$A$101,0),MATCH($C$22,Pricing!$E$4:$G$4,0)) -> 244.18 | G83: 0 | I83: 0 | N83: =IF(OR(AV83 ="",AK83+AL83=0),0,E83*AV83*(AK83+AL83)) -> 0 | Q83: 3 | R83: 130.68 | S83: =IF(AND(TRIM(R83)<>"",TRIM(E83)<>""),(E83*8)/R83,"") ->  | AK83: 0 | AL83: 0 | AM83: 0 | AV83: =INDEX(Pricing!$A$5:$D$100,MATCH('2024 FALL CALCULATOR'!$C83,Pricing!$A$5:$A$100,0),MATCH("National",Pricing!$A$4:$D$4,0)) -> 244.18 | AW83: 0 | AX83: =INDEX(Pricing!$A$5:$K$100,MATCH('2024 FALL CALCULATOR'!$C83,Pricing!$A$5:$A$100,0),MATCH("Dist Suggested Min Price (DSMP)",Pricing!$A$4:$K$4,0)) -> 0 | AY83: 0
B84: Purchases count towards rebate tier but do not receive purchase tier rebate | C84: Merit® 75 WSP | D84: 4x1.6 oz | F84: =INDEX(Pricing!$E$5:$G$101,MATCH('2024 FALL CALCULATOR'!$C84,Pricing!$A$5:$A$101,0),MATCH($C$22,Pricing!$E$4:$G$4,0)) -> 102.64 | G84: 0 | I84: 0 | Q84: 0.145 | R84: =Q84*43.56 -> 6.3162 | S84: =IF(AND(TRIM(R84)<>"",TRIM(E84)<>""),(E84*16)/R84,"") ->  | T84: 0 | U84: 0 | AM84: 0 | AV84: =INDEX(Pricing!$A$5:$D$100,MATCH('2024 FALL CALCULATOR'!$C84,Pricing!$A$5:$A$100,0),MATCH("National",Pricing!$A$4:$D$4,0)) -> 102.64 | AW84: 0 | AX84: =INDEX(Pricing!$A$5:$K$100,MATCH('2024 FALL CALCULATOR'!$C84,Pricing!$A$5:$A$100,0),MATCH("Dist Suggested Min Price (DSMP)",Pricing!$A$4:$K$4,0)) -> 0 | AY84: 0
C85: Merit 2F | D85: 1 gal. jug | F85: =INDEX(Pricing!$E$5:$G$101,MATCH('2024 FALL CALCULATOR'!$C85,Pricing!$A$5:$A$101,0),MATCH($C$22,Pricing!$E$4:$G$4,0)) -> 40.15 | G85: 0 | I85: 0 | Q85: 0.6 | R85: 26.136 | S85: =IF(AND(TRIM(R85)<>"",TRIM(E85)<>""),(E85*127.999939675621)/R85,"") ->  | T85: 0 | U85: 0 | AM85: 0 | AV85: =INDEX(Pricing!$A$5:$D$100,MATCH('2024 FALL CALCULATOR'!$C85,Pricing!$A$5:$A$100,0),MATCH("National",Pricing!$A$4:$D$4,0)) -> 40.15 | AW85: 0 | AX85: =INDEX(Pricing!$A$5:$K$100,MATCH('2024 FALL CALCULATOR'!$C85,Pricing!$A$5:$A$100,0),MATCH("Dist Suggested Min Price (DSMP)",Pricing!$A$4:$K$4,0)) -> 0 | AY85: 0
C86: Prograss® EC | D86: 2.5 gal jug | F86: =INDEX(Pricing!$E$5:$G$101,MATCH('2024 FALL CALCULATOR'!$C86,Pricing!$A$5:$A$101,0),MATCH($C$22,Pricing!$E$4:$G$4,0)) -> 368.25 | G86: 0 | I86: 0 | Q86: 1.5 | R86: 65.34 | S86: =IF(AND(TRIM(R86)<>"",TRIM(E86)<>""),(E86*319.999849189052)/R86,"") ->  | AM86: 0 | AV86: =INDEX(Pricing!$A$5:$D$100,MATCH('2024 FALL CALCULATOR'!$C86,Pricing!$A$5:$A$100,0),MATCH("National",Pricing!$A$4:$D$4,0)) -> 368.25 | AW86: 0 | AX86: =INDEX(Pricing!$A$5:$K$100,MATCH('2024 FALL CALCULATOR'!$C86,Pricing!$A$5:$A$100,0),MATCH("Dist Suggested Min Price (DSMP)",Pricing!$A$4:$K$4,0)) -> 0 | AY86: 0
C87: Proxy® | D87: 2.5 gal. jug | F87: =INDEX(Pricing!$E$5:$G$101,MATCH('2024 FALL CALCULATOR'!$C87,Pricing!$A$5:$A$101,0),MATCH($C$22,Pricing!$E$4:$G$4,0)) -> 102.25 | G87: 0 | I87: 0 | Q87: 5 | R87: 217.8 | S87: =IF(AND(TRIM(R87)<>"",TRIM(E87)<>""),(E87*319.999849189052)/R87,"") ->  | AM87: 0 | AV87: =INDEX(Pricing!$A$5:$D$100,MATCH('2024 FALL CALCULATOR'!$C87,Pricing!$A$5:$A$100,0),MATCH("National",Pricing!$A$4:$D$4,0)) -> 102.25 | AW87: 0 | AX87: =INDEX(Pricing!$A$5:$K$100,MATCH('2024 FALL CALCULATOR'!$C87,Pricing!$A$5:$A$100,0),MATCH("Dist Suggested Min Price (DSMP)",Pricing!$A$4:$K$4,0)) -> 0 | AY87: 0
B88: Purchase Tier | C88: Revolver®(32 oz. bottle) | D88: 32 oz bottle | F88: =INDEX(Pricing!$E$5:$G$101,MATCH('2024 FALL CALCULATOR'!$C88,Pricing!$A$5:$A$101,0),MATCH($C$22,Pricing!$E$4:$G$4,0)) -> 288.56 | G88: 0 | I88: 0 | N88: =IF(OR(AV88 ="",AK88+AL88=0),0,E88*AV88*(AK88+AL88)) -> 0 | Q88: 0.4 | R88: 17.42 | S88: =IF(AND(TRIM(R88)<>"",TRIM(E88)<>""),(E88*32)/R88,"") ->  | AK88: =IF(AND(E88 <>"",AM$91>=5000,AL$91<=0.07),$AR$18,0) -> 0 | AL88: =IF(E88 <>"", AL$91,0) -> 0 | AM88: 0 | AV88: =INDEX(Pricing!$A$5:$D$100,MATCH('2024 FALL CALCULATOR'!$C88,Pricing!$A$5:$A$100,0),MATCH("National",Pricing!$A$4:$D$4,0)) -> 288.56 | AW88: 0 | AX88: =INDEX(Pricing!$A$5:$K$100,MATCH('2024 FALL CALCULATOR'!$C88,Pricing!$A$5:$A$100,0),MATCH("Dist Suggested Min Price (DSMP)",Pricing!$A$4:$K$4,0)) -> 0 | AY88: 0
B89: Purchase Tier | C89: Sencor® 75 | D89: 5 lb.bottle | F89: =INDEX(Pricing!$E$5:$G$101,MATCH('2024 FALL CALCULATOR'!$C89,Pricing!$A$5:$A$101,0),MATCH($C$22,Pricing!$E$4:$G$4,0)) -> 586 | G89: 0 | I89: 0 | N89: =IF(OR(AV89 ="",AK89+AL89=0),0,E89*AV89*(AK89+AL89)) -> 0 | Q89: 0.242 | R89: 0.66 | S89: =IF(AND(TRIM(R89)<>"",TRIM(E89)<>""),(E89*5)/R89,"") ->  | AK89: =IF(AND(E89 <>"",AM$91>=5000,AL$91<=0.07),0.01,0) -> 0 | AL89: =IF(E89 <>"", AL$91,0) -> 0 | AM89: 0 | AV89: =INDEX(Pricing!$A$5:$D$100,MATCH('2024 FALL CALCULATOR'!$C89,Pricing!$A$5:$A$100,0),MATCH("National",Pricing!$A$4:$D$4,0)) -> 586 | AW89: 0 | AX89: =INDEX(Pricing!$A$5:$K$100,MATCH('2024 FALL CALCULATOR'!$C89,Pricing!$A$5:$A$100,0),MATCH("Dist Suggested Min Price (DSMP)",Pricing!$A$4:$K$4,0)) -> 0 | AY89: 0
B90: Purchases count towards rebate tier but do not receive purchase tier rebate | C90: Topchoice® | D90: 50 lb. bag | F90: =INDEX(Pricing!$E$5:$G$101,MATCH('2024 FALL CALCULATOR'!$C90,Pricing!$A$5:$A$101,0),MATCH($C$22,Pricing!$E$4:$G$4,0)) -> 63 | G90: 0 | I90: 0 | R90: 87 | S90: =IF(AND(TRIM(R90)<>"",TRIM(E90)<>""),(E90*50)/R90,"") ->  | AM90: 0 | AV90: =INDEX(Pricing!$A$5:$D$100,MATCH('2024 FALL CALCULATOR'!$C90,Pricing!$A$5:$A$100,0),MATCH("National",Pricing!$A$4:$D$4,0)) -> 63 | AW90: 0 | AX90: =INDEX(Pricing!$A$5:$K$100,MATCH('2024 FALL CALCULATOR'!$C90,Pricing!$A$5:$A$100,0),MATCH("Dist Suggested Min Price (DSMP)",Pricing!$A$4:$K$4,0)) -> 0 | AY90: 0
G91: =SUM(G28:G63) + SUM(I69:I90) -> 0 | I91: =SUM(I28:I63) + SUM(I69:I90) -> 0 | J91: 0 | K91: 0 | L91: 0 | M91: 0 | N91: 0 | P91: =SUM(P28:P63) + SUM(P69:P90) -> 0 | AL91: =IF(OR(AM$91="",AM$91<=5000),0,(VLOOKUP(AM91,AK17:AM22,3))) -> 0 | AM91: =SUM(AM28:AM63) + SUM(AM69:AM90) -> 0
B93: Summary
B94: Summary is provided as an estimate only. See program rules and conditions.
B96: Total Before Off Invoice Volume Discounts | E96: =IF(G91<I91,I91,G91) -> 0
B97: Off Invoice Volume Discount | E97: =IF((SUM(G28:G63)-SUM(I28:I63))<0,0,(SUM(G28:G63)-SUM(I28:I63))) -> 0
B98: Invoice Total | E98: =I91 -> 0
B99: Purchase Tier Level (Standard calculation assumes order is invoiced by Oct 31, 2024 and will receive 1% Oct bonus to purchase tier rebate) | E99: =IF(AND(I91<>"",I91> 0),N27,0) -> 0
B100: Rebate (Total Program Purchase must be a minimum of $5,000 to receive rebates) | E100: =IF(E99=0,0,MIN(SUM(J91:O91),E98)) -> 0
B101: Net Total after Rebate | E101: =P91 -> 0
B102: Rebate % (Total Program Purchase must be a minimum of $5,000 to receive rebates) | E102: =IF(AND(I91<>"",I91>0),MIN((E100/E98),1),0) -> 0
B103: Total Savings (Rebates + Off Invoice Volume Discounts) | E103: =E97+E100 -> 0
B104: Total Savings % (Rebates + Off Invoice Volume Discounts) | E104: =IF(AND(E96 <> "", E96 > 0), E103/E96,0) -> 0
B106: =CONCATENATE("Estimated MER points to be earned: ",TEXT(IF(AND(E100 <>"", E100 > 0),E100*100, 0),"#,##0")) -> Estimated MER points to be earned: 0 | I106: =U13 -> Fall Solutions National Large Lawn Calculator - version 2024-0011-0002

Sheet SUMMARY
G8: ='2024 FALL CALCULATOR'!U13 -> Fall Solutions National Large Lawn Calculator - version 2024-0011-0002
B9: ='2024 FALL CALCULATOR'!B16 -> NAME YOUR DRAFT ORDER HERE:
B10: Description: | C10: =IF('2024 FALL CALCULATOR'!C17="","",'2024 FALL CALCULATOR'!C17) -> 
B11: Distributor/DSR: | C11: =IF('2024 FALL CALCULATOR'!C18="","",'2024 FALL CALCULATOR'!C18) -> 
B12: MER#: | C12: =IF('2024 FALL CALCULATOR'!C19="","",'2024 FALL CALCULATOR'!C19) -> 
B13: Last Updated: | C13: =IF('2024 FALL CALCULATOR'!C20="","",'2024 FALL CALCULATOR'!C20) -> 
B14: Created For: | C14: =IF('2024 FALL CALCULATOR'!C21="","",'2024 FALL CALCULATOR'!C21) -> 
B15: Region: | C15: =IF('2024 FALL CALCULATOR'!C22="","",'2024 FALL CALCULATOR'!C22) -> National
B17: PRODUCT NAME | C17: UNIT SIZE | D17: # UNITS | E17: PRICE/UNIT | F17: SUBTOTAL | G17: NET PRICE/UNIT
B20: ='2024 FALL CALCULATOR'!C28 -> Altus (64 fl.oz. bottle), 1-15 | C20: ='2024 FALL CALCULATOR'!D28 -> 64 fl oz | D20: ='2024 FALL CALCULATOR'!E28 -> 0 | E20: ='2024 FALL CALCULATOR'!H28 -> 428.4 | F20: ='2024 FALL CALCULATOR'!I28 -> 0 | G20: ='2024 FALL CALCULATOR'!O28 -> 
B21: ='2024 FALL CALCULATOR'!C29 -> Altus (64 fl.oz. bottle), 16-31 | C21: ='2024 FALL CALCULATOR'!D29 -> 64 fl oz | D21: ='2024 FALL CALCULATOR'!E29 -> 0 | E21: ='2024 FALL CALCULATOR'!H29 -> 406.98 | F21: ='2024 FALL CALCULATOR'!I29 -> 0 | G21: ='2024 FALL CALCULATOR'!O29 -> 
B22: ='2024 FALL CALCULATOR'!C30 -> Altus (64 fl.oz. bottle), 32+ | C22: ='2024 FALL CALCULATOR'!D30 -> 64 fl oz | D22: ='2024 FALL CALCULATOR'!E30 -> 0 | E22: ='2024 FALL CALCULATOR'!H30 -> 385.56 | F22: ='2024 FALL CALCULATOR'!I30 -> 0 | G22: ='2024 FALL CALCULATOR'!O30 -> 
B23: ='2024 FALL CALCULATOR'!C31 -> Banol® | C23: ='2024 FALL CALCULATOR'!D31 -> 2.5 gal. bottle | D23: ='2024 FALL CALCULATOR'!E31 -> 0 | E23: ='2024 FALL CALCULATOR'!H31 -> 1254 | F23: ='2024 FALL CALCULATOR'!I31 -> 0 | G23: ='2024 FALL CALCULATOR'!O31 -> 
B24: ='2024 FALL CALCULATOR'!C32 -> Celsius | C24: ='2024 FALL CALCULATOR'!D32 -> 10 oz. bottle | D24: ='2024 FALL CALCULATOR'!E32 -> 0 | E24: ='2024 FALL CALCULATOR'!H32 -> 128.4 | F24: ='2024 FALL CALCULATOR'!I32 -> 0 | G24: ='2024 FALL CALCULATOR'!O32 -> 
B25: ='2024 FALL CALCULATOR'!C33 -> Celsius XTRA | C25: ='2024 FALL CALCULATOR'!D33 -> 10 oz. bottle | D25: ='2024 FALL CALCULATOR'!E33 -> 0 | E25: ='2024 FALL CALCULATOR'!H33 -> 166.4 | F25: ='2024 FALL CALCULATOR'!I33 -> 0 | G25: ='2024 FALL CALCULATOR'!O33 -> 
B26: ='2024 FALL CALCULATOR'!C34 -> Chipco Signature (1-8 units) | C26: ='2024 FALL CALCULATOR'!D34 -> 11 lb. bottle | D26: ='2024 FALL CALCULATOR'!E34 -> 0 | E26: ='2024 FALL CALCULATOR'!H34 -> 392.8 | F26: ='2024 FALL CALCULATOR'!I34 -> 0 | G26: ='2024 FALL CALCULATOR'!O34 -> 
B27: ='2024 FALL CALCULATOR'!C35 -> Chipco Signature (9+ units) | C27: ='2024 FALL CALCULATOR'!D35 -> 11 lb. bottle | D27: ='2024 FALL CALCULATOR'!E35 -> 0 | E27: ='2024 FALL CALCULATOR'!H35 -> 368.8 | F27: ='2024 FALL CALCULATOR'!I35 -> 0 | G27: ='2024 FALL CALCULATOR'!O35 -> 
B28: ='2024 FALL CALCULATOR'!C36 -> Castlon™ (1 gal.) | C28: ='2024 FALL CALCULATOR'!D36 -> 1 gal. bottle | D28: ='2024 FALL CALCULATOR'!E36 -> 0 | E28: ='2024 FALL CALCULATOR'!H36 -> 2600 | F28: ='2024 FALL CALCULATOR'!I36 -> 0 | G28: ='2024 FALL CALCULATOR'!O36 -> 
B29: ='2024 FALL CALCULATOR'!C37 -> Castlon™ (16oz.) | C29: ='2024 FALL CALCULATOR'!D37 -> 16 oz. bottle | D29: ='2024 FALL CALCULATOR'!E37 -> 0 | E29: ='2024 FALL CALCULATOR'!H37 -> 366.5 | F29: ='2024 FALL CALCULATOR'!I37 -> 0 | G29: ='2024 FALL CALCULATOR'!O37 -> 
B30: ='2024 FALL CALCULATOR'!C38 -> Densicor® | C30: ='2024 FALL CALCULATOR'!D38 -> 51 oz. bottle | D30: ='2024 FALL CALCULATOR'!E38 -> 0 | E30: ='2024 FALL CALCULATOR'!H38 -> 739.6 | F30: ='2024 FALL CALCULATOR'!I38 -> 0 | G30: ='2024 FALL CALCULATOR'!O38 -> 
B31: ='2024 FALL CALCULATOR'!C39 -> Exteris® Stressgard® | C31: ='2024 FALL CALCULATOR'!D39 -> 2.5 gal jug | D31: ='2024 FALL CALCULATOR'!E39 -> 0 | E31: ='2024 FALL CALCULATOR'!H39 -> 366 | F31: ='2024 FALL CALCULATOR'!I39 -> 0 | G31: ='2024 FALL CALCULATOR'!O39 -> 
B32: ='2024 FALL CALCULATOR'!C40 -> Fiata® Stressgard® | C32: ='2024 FALL CALCULATOR'!D40 -> 2.5 gal jug | D32: ='2024 FALL CALCULATOR'!E40 -> 0 | E32: ='2024 FALL CALCULATOR'!H40 -> 190 | F32: ='2024 FALL CALCULATOR'!I40 -> 0 | G32: ='2024 FALL CALCULATOR'!O40 -> 
B33: ='2024 FALL CALCULATOR'!C41 -> Indemnify® (1-2 units) | C33: ='2024 FALL CALCULATOR'!D41 -> 17.1 oz. bottle | D33: ='2024 FALL CALCULATOR'!E41 -> 0 | E33: ='2024 FALL CALCULATOR'!H41 -> 1963.6 | F33: ='2024 FALL CALCULATOR'!I41 -> 0 | G33: ='2024 FALL CALCULATOR'!O41 -> 
B34: ='2024 FALL CALCULATOR'!C42 -> Indemnify® (3+ units) | C34: ='2024 FALL CALCULATOR'!D42 -> 17.1 oz. bottle | D34: ='2024 FALL CALCULATOR'!E42 -> 0 | E34: ='2024 FALL CALCULATOR'!H42 -> 1767.2 | F34: ='2024 FALL CALCULATOR'!I42 -> 0 | G34: ='2024 FALL CALCULATOR'!O42 -> 
B35: ='2024 FALL CALCULATOR'!C43 -> Interface® Stressgard® (1-5 units) | C35: ='2024 FALL CALCULATOR'!D43 -> 2.5 gal. bottle | D35: ='2024 FALL CALCULATOR'!E43 -> 0 | E35: ='2024 FALL CALCULATOR'!H43 -> 561 | F35: ='2024 FALL CALCULATOR'!I43 -> 0 | G35: ='2024 FALL CALCULATOR'!O43 -> 
B36: ='2024 FALL CALCULATOR'!C44 -> Interface® Stressgard® (6+ units) | C36: ='2024 FALL CALCULATOR'!D44 -> 2.5 gal. bottle | D36: ='2024 FALL CALCULATOR'!E44 -> 0 | E36: ='2024 FALL CALCULATOR'!H44 -> 494 | F36: ='2024 FALL CALCULATOR'!I44 -> 0 | G36: ='2024 FALL CALCULATOR'!O44 -> 
B37: ='2024 FALL CALCULATOR'!C45 -> Kontos (12-29 units) | C37: ='2024 FALL CALCULATOR'!D45 -> 250 ml. bottle | D37: ='2024 FALL CALCULATOR'!E45 -> 0 | E37: ='2024 FALL CALCULATOR'!H45 -> 210.52 | F37: ='2024 FALL CALCULATOR'!I45 -> 0 | G37: ='2024 FALL CALCULATOR'!O45 -> 
B38: ='2024 FALL CALCULATOR'!C46 -> Kontos (30+ units) | C38: ='2024 FALL CALCULATOR'!D46 -> 250 ml. bottle | D38: ='2024 FALL CALCULATOR'!E46 -> 0 | E38: ='2024 FALL CALCULATOR'!H46 -> 199.44 | F38: ='2024 FALL CALCULATOR'!I46 -> 0 | G38: ='2024 FALL CALCULATOR'!O46 -> 
B39: ='2024 FALL CALCULATOR'!C47 -> Mirage® Stressgard® | C39: ='2024 FALL CALCULATOR'!D47 -> 2.5 gal. bottle | D39: ='2024 FALL CALCULATOR'!E47 -> 0 | E39: ='2024 FALL CALCULATOR'!H47 -> 488 | F39: ='2024 FALL CALCULATOR'!I47 -> 0 | G39: ='2024 FALL CALCULATOR'!O47 -> 
B40: ='2024 FALL CALCULATOR'!C48 -> Resilia ™ | C40: ='2024 FALL CALCULATOR'!D48 -> 2.72 gal. bottle | D40: ='2024 FALL CALCULATOR'!E48 -> 0 | E40: ='2024 FALL CALCULATOR'!H48 -> 918.87 | F40: ='2024 FALL CALCULATOR'!I48 -> 0 | G40: ='2024 FALL CALCULATOR'!O48 -> 
B41: ='2024 FALL CALCULATOR'!C49 -> Ronstar® FLO 1 to 11 | C41: ='2024 FALL CALCULATOR'!D49 -> 2.5 gal jug | D41: ='2024 FALL CALCULATOR'!E49 -> 0 | E41: ='2024 FALL CALCULATOR'!H49 -> 552 | F41: ='2024 FALL CALCULATOR'!I49 -> 0 | G41: ='2024 FALL CALCULATOR'!O49 -> 
B42: ='2024 FALL CALCULATOR'!C50 -> Ronstar® FLO 12 to 39 | C42: ='2024 FALL CALCULATOR'!D50 -> 2.5 gal jug | D42: ='2024 FALL CALCULATOR'!E50 -> 0 | E42: ='2024 FALL CALCULATOR'!H50 -> 453 | F42: ='2024 FALL CALCULATOR'!I50 -> 0 | G42: ='2024 FALL CALCULATOR'!O50 -> 
B43: ='2024 FALL CALCULATOR'!C51 -> Ronstar® FLO 40+ | C43: ='2024 FALL CALCULATOR'!D51 -> 2.5 gal jug | D43: ='2024 FALL CALCULATOR'!E51 -> 0 | E43: ='2024 FALL CALCULATOR'!H51 -> 393 | F43: ='2024 FALL CALCULATOR'!I51 -> 0 | G43: ='2024 FALL CALCULATOR'!O51 -> 
B44: ='2024 FALL CALCULATOR'!C52 -> Revolver® (87 oz. bottle) | C44: ='2024 FALL CALCULATOR'!D52 -> 87 oz. bottle | D44: ='2024 FALL CALCULATOR'!E52 -> 0 | E44: ='2024 FALL CALCULATOR'!H52 -> 758 | F44: ='2024 FALL CALCULATOR'!I52 -> 0 | G44: ='2024 FALL CALCULATOR'!O52 -> 
B45: ='2024 FALL CALCULATOR'!C53 -> Signature XTRA Stressgard (1 to 23) | C45: ='2024 FALL CALCULATOR'!D53 -> 5.5 lb bottle | D45: ='2024 FALL CALCULATOR'!E53 -> 0 | E45: ='2024 FALL CALCULATOR'!H53 -> 210.4 | F45: ='2024 FALL CALCULATOR'!I53 -> 0 | G45: ='2024 FALL CALCULATOR'!O53 -> 
B46: ='2024 FALL CALCULATOR'!C54 -> Signature XTRA Stressgard (24+) | C46: ='2024 FALL CALCULATOR'!D54 -> 5.5 lb bottle | D46: ='2024 FALL CALCULATOR'!E54 -> 0 | E46: ='2024 FALL CALCULATOR'!H54 -> 192.8 | F46: ='2024 FALL CALCULATOR'!I54 -> 0 | G46: ='2024 FALL CALCULATOR'!O54 -> 
B47: ='2024 FALL CALCULATOR'!C55 -> Specticle® FLO (1-6 units) | C47: ='2024 FALL CALCULATOR'!D55 -> 1 gal. bottle | D47: ='2024 FALL CALCULATOR'!E55 -> 0 | E47: ='2024 FALL CALCULATOR'!H55 -> 1968.4 | F47: ='2024 FALL CALCULATOR'!I55 -> 0 | G47: ='2024 FALL CALCULATOR'!O55 -> 
B48: ='2024 FALL CALCULATOR'!C56 -> Specticle® FLO (7-13 units) | C48: ='2024 FALL CALCULATOR'!D56 -> 1 gal. bottle | D48: ='2024 FALL CALCULATOR'!E56 -> 0 | E48: ='2024 FALL CALCULATOR'!H56 -> 1895.88 | F48: ='2024 FALL CALCULATOR'!I56 -> 0 | G48: ='2024 FALL CALCULATOR'!O56 -> 
B49: ='2024 FALL CALCULATOR'!C57 -> Specticle® FLO (14-25 units) | C49: ='2024 FALL CALCULATOR'!D57 -> 1 gal. bottle | D49: ='2024 FALL CALCULATOR'!E57 -> 0 | E49: ='2024 FALL CALCULATOR'!H57 -> 1657.6 | F49: ='2024 FALL CALCULATOR'!I57 -> 0 | G49: ='2024 FALL CALCULATOR'!O57 -> 
B50: ='2024 FALL CALCULATOR'!C58 -> Specticle® FLO (26+ units) | C50: ='2024 FALL CALCULATOR'!D58 -> 1 gal. bottle | D50: ='2024 FALL CALCULATOR'!E58 -> 0 | E50: ='2024 FALL CALCULATOR'!H58 -> 1533.28 | F50: ='2024 FALL CALCULATOR'!I58 -> 0 | G50: ='2024 FALL CALCULATOR'!O58 -> 
B51: ='2024 FALL CALCULATOR'!C59 -> Specticle® G | C51: ='2024 FALL CALCULATOR'!D59 -> 50 lb. bag | D51: ='2024 FALL CALCULATOR'!E59 -> 0 | E51: ='2024 FALL CALCULATOR'!H59 -> 128 | F51: ='2024 FALL CALCULATOR'!I59 -> 0 | G51: ='2024 FALL CALCULATOR'!O59 -> 
B52: ='2024 FALL CALCULATOR'!C60 -> Tartan® Stressgard® (1 to 5 units) | C52: ='2024 FALL CALCULATOR'!D60 -> 2.5 gal | D52: ='2024 FALL CALCULATOR'!E60 -> 0 | E52: ='2024 FALL CALCULATOR'!H60 -> 1033 | F52: ='2024 FALL CALCULATOR'!I60 -> 0 | G52: ='2024 FALL CALCULATOR'!O60 -> 
B53: ='2024 FALL CALCULATOR'!C61 -> Tartan® Stressgard® 6+ | C53: ='2024 FALL CALCULATOR'!D61 -> 2.5 gal | D53: ='2024 FALL CALCULATOR'!E61 -> 0 | E53: ='2024 FALL CALCULATOR'!H61 -> 940 | F53: ='2024 FALL CALCULATOR'!I61 -> 0 | G53: ='2024 FALL CALCULATOR'!O61 -> 
B54: ='2024 FALL CALCULATOR'!C62 -> Tribute® Total | C54: ='2024 FALL CALCULATOR'!D62 -> 6 oz. bottle | D54: ='2024 FALL CALCULATOR'!E62 -> 0 | E54: ='2024 FALL CALCULATOR'!H62 -> 413.6 | F54: ='2024 FALL CALCULATOR'!I62 -> 0 | G54: ='2024 FALL CALCULATOR'!O62 -> 
B55: ='2024 FALL CALCULATOR'!C63 -> Tetrino® | C55: ='2024 FALL CALCULATOR'!D63 -> 1 gal bottle | D55: ='2024 FALL CALCULATOR'!E63 -> 0 | E55: ='2024 FALL CALCULATOR'!H63 -> 498 | F55: ='2024 FALL CALCULATOR'!I63 -> 0 | G55: ='2024 FALL CALCULATOR'!O63 -> 
B56: ='2024 FALL CALCULATOR'!C69 -> Armada® 50 WDG | C56: ='2024 FALL CALCULATOR'!D69 -> 2 lb. bottle | D56: ='2024 FALL CALCULATOR'!E69 -> 0 | E56: ='2024 FALL CALCULATOR'!H69 -> 0 | F56: ='2024 FALL CALCULATOR'!I69 -> 0 | G56: ='2024 FALL CALCULATOR'!O69 -> 
B57: ='2024 FALL CALCULATOR'!C70 -> Acclaim® Extra (1 gal) | C57: ='2024 FALL CALCULATOR'!D70 -> 1 gal. jug | D57: ='2024 FALL CALCULATOR'!E70 -> 0 | E57: ='2024 FALL CALCULATOR'!H70 -> 0 | F57: ='2024 FALL CALCULATOR'!I70 -> 0 | G57: ='2024 FALL CALCULATOR'!O70 -> 
B58: ='2024 FALL CALCULATOR'!C71 -> Acclaim Accelerate (0.5 gal) | C58: ='2024 FALL CALCULATOR'!D71 -> .5 gal. jug | D58: ='2024 FALL CALCULATOR'!E71 -> 0 | E58: ='2024 FALL CALCULATOR'!H71 -> 0 | F58: ='2024 FALL CALCULATOR'!I71 -> 0 | G58: ='2024 FALL CALCULATOR'!O71 -> 
B59: ='2024 FALL CALCULATOR'!C72 -> Acclaim Accelerate (2.5 gal) | C59: ='2024 FALL CALCULATOR'!D72 -> 2.5 gal. jug | D59: ='2024 FALL CALCULATOR'!E72 -> 0 | E59: ='2024 FALL CALCULATOR'!H72 -> 0 | F59: ='2024 FALL CALCULATOR'!I72 -> 0 | G59: ='2024 FALL CALCULATOR'!O72 -> 
B60: ='2024 FALL CALCULATOR'!C73 -> Terradex™ Power Premix (2.5 gal) | C60: ='2024 FALL CALCULATOR'!D73 -> 2.5 gal. jug | D60: ='2024 FALL CALCULATOR'!E73 -> 0 | E60: ='2024 FALL CALCULATOR'!H73 -> 0 | F60: ='2024 FALL CALCULATOR'!I73 -> 0 | G60: ='2024 FALL CALCULATOR'!O73 -> 
B61: ='2024 FALL CALCULATOR'!C74 -> Terradex™ Power Premix (30 gal) | C61: ='2024 FALL CALCULATOR'!D74 -> 30 gal. jug | D61: ='2024 FALL CALCULATOR'!E74 -> 0 | E61: ='2024 FALL CALCULATOR'!H74 -> 0 | F61: ='2024 FALL CALCULATOR'!I74 -> 0 | G61: ='2024 FALL CALCULATOR'!O74 -> 
B62: ='2024 FALL CALCULATOR'!C75 -> Terradex™ Quick Strike (1 gal) | C62: ='2024 FALL CALCULATOR'!D75 -> 1 gal.jug | D62: ='2024 FALL CALCULATOR'!E75 -> 0 | E62: ='2024 FALL CALCULATOR'!H75 -> 0 | F62: ='2024 FALL CALCULATOR'!I75 -> 0 | G62: ='2024 FALL CALCULATOR'!O75 -> 
B63: ='2024 FALL CALCULATOR'!C76 -> Terradex™ Quick Strike (2.5 gal) | C63: ='2024 FALL CALCULATOR'!D76 -> 2.5 gal. jug | D63: ='2024 FALL CALCULATOR'!E76 -> 0 | E63: ='2024 FALL CALCULATOR'!H76 -> 0 | F63: ='2024 FALL CALCULATOR'!I76 -> 0 | G63: ='2024 FALL CALCULATOR'!O76 -> 
B64: ='2024 FALL CALCULATOR'!C77 -> Terradex™ Quick Strike (30 gal) | C64: ='2024 FALL CALCULATOR'!D77 -> 30 gal. jug | D64: ='2024 FALL CALCULATOR'!E77 -> 0 | E64: ='2024 FALL CALCULATOR'!H77 -> 0 | F64: ='2024 FALL CALCULATOR'!I77 -> 0 | G64: ='2024 FALL CALCULATOR'!O77 -> 
B65: ='2024 FALL CALCULATOR'!C78 -> Terradex™ Crabgrass & Broadleaf (1 gal) | C65: ='2024 FALL CALCULATOR'!D78 -> 1 gal jug | D65: ='2024 FALL CALCULATOR'!E78 -> 0 | E65: ='2024 FALL CALCULATOR'!H78 -> 0 | F65: ='2024 FALL CALCULATOR'!I78 -> 0 | G65: ='2024 FALL CALCULATOR'!O78 -> 
B66: ='2024 FALL CALCULATOR'!C79 -> Terradex™ Crabgrass & Broadleaf (2.5 gal) | C66: ='2024 FALL CALCULATOR'!D79 -> 2.5 gal.jug | D66: ='2024 FALL CALCULATOR'!E79 -> 0 | E66: ='2024 FALL CALCULATOR'!H79 -> 0 | F66: ='2024 FALL CALCULATOR'!I79 -> 0 | G66: ='2024 FALL CALCULATOR'!O79 -> 
B67: ='2024 FALL CALCULATOR'!C80 -> 26 GT® | C67: ='2024 FALL CALCULATOR'!D80 -> 2.5 gal. jug | D67: ='2024 FALL CALCULATOR'!E80 -> 0 | E67: ='2024 FALL CALCULATOR'!H80 -> 0 | F67: ='2024 FALL CALCULATOR'!I80 -> 0 | G67: ='2024 FALL CALCULATOR'!O80 -> 
B68: ='2024 FALL CALCULATOR'!C81 -> Chipco® Choice | C68: ='2024 FALL CALCULATOR'!D81 -> 50 lb. bag | D68: ='2024 FALL CALCULATOR'!E81 -> 0 | E68: ='2024 FALL CALCULATOR'!H81 -> 0 | F68: ='2024 FALL CALCULATOR'!I81 -> 0 | G68: ='2024 FALL CALCULATOR'!O81 -> 
B69: ='2024 FALL CALCULATOR'!C82 -> Dylox 420 SL | C69: ='2024 FALL CALCULATOR'!D82 -> 2.5 gal jug | D69: ='2024 FALL CALCULATOR'!E82 -> 0 | E69: ='2024 FALL CALCULATOR'!H82 -> 0 | F69: ='2024 FALL CALCULATOR'!I82 -> 0 | G69: ='2024 FALL CALCULATOR'!O82 -> 
B70: ='2024 FALL CALCULATOR'!C83 -> Forbid® | C70: ='2024 FALL CALCULATOR'!D83 -> 8 fl.oz. bottle | D70: ='2024 FALL CALCULATOR'!E83 -> 0 | E70: ='2024 FALL CALCULATOR'!H83 -> 0 | F70: ='2024 FALL CALCULATOR'!I83 -> 0 | G70: ='2024 FALL CALCULATOR'!O83 -> 
B71: ='2024 FALL CALCULATOR'!C84 -> Merit® 75 WSP | C71: ='2024 FALL CALCULATOR'!D84 -> 4x1.6 oz | D71: ='2024 FALL CALCULATOR'!E84 -> 0 | E71: ='2024 FALL CALCULATOR'!H84 -> 0 | F71: ='2024 FALL CALCULATOR'!I84 -> 0 | G71: ='2024 FALL CALCULATOR'!O84 -> 
B72: ='2024 FALL CALCULATOR'!C85 -> Merit 2F | C72: ='2024 FALL CALCULATOR'!D85 -> 1 gal. jug | D72: ='2024 FALL CALCULATOR'!E85 -> 0 | E72: ='2024 FALL CALCULATOR'!H85 -> 0 | F72: ='2024 FALL CALCULATOR'!I85 -> 0 | G72: ='2024 FALL CALCULATOR'!O85 -> 
B73: ='2024 FALL CALCULATOR'!C86 -> Prograss® EC | C73: ='2024 FALL CALCULATOR'!D86 -> 2.5 gal jug | D73: ='2024 FALL CALCULATOR'!E86 -> 0 | E73: ='2024 FALL CALCULATOR'!H86 -> 0 | F73: ='2024 FALL CALCULATOR'!I86 -> 0 | G73: ='2024 FALL CALCULATOR'!O86 -> 
B74: ='2024 FALL CALCULATOR'!C87 -> Proxy® | C74: ='2024 FALL CALCULATOR'!D87 -> 2.5 gal. jug | D74: ='2024 FALL CALCULATOR'!E87 -> 0 | E74: ='2024 FALL CALCULATOR'!H87 -> 0 | F74: ='2024 FALL CALCULATOR'!I87 -> 0 | G74: ='2024 FALL CALCULATOR'!O87 -> 
B75: ='2024 FALL CALCULATOR'!C88 -> Revolver®(32 oz. bottle) | C75: ='2024 FALL CALCULATOR'!D88 -> 32 oz bottle | D75: ='2024 FALL CALCULATOR'!E88 -> 0 | E75: ='2024 FALL CALCULATOR'!H88 -> 0 | F75: ='2024 FALL CALCULATOR'!I88 -> 0 | G75: ='2024 FALL CALCULATOR'!O88 -> 
B76: ='2024 FALL CALCULATOR'!C89 -> Sencor® 75 | C76: ='2024 FALL CALCULATOR'!D89 -> 5 lb.bottle | D76: ='2024 FALL CALCULATOR'!E89 -> 0 | E76: ='2024 FALL CALCULATOR'!H89 -> 0 | F76: ='2024 FALL CALCULATOR'!I89 -> 0 | G76: ='2024 FALL CALCULATOR'!O89 -> 
B77: ='2024 FALL CALCULATOR'!C90 -> Topchoice® | C77: ='2024 FALL CALCULATOR'!D90 -> 50 lb. bag | D77: ='2024 FALL CALCULATOR'!E90 -> 0 | E77: ='2024 FALL CALCULATOR'!H90 -> 0 | F77: ='2024 FALL CALCULATOR'!I90 -> 0 | G77: ='2024 FALL CALCULATOR'!O90 -> 
F78: =SUM(F20:F77) -> 0
B81: Summary
B82: Summary is provided as an estimate only. See program rules and conditions.
B85: ='2024 FALL CALCULATOR'!B96 -> Total Before Off Invoice Volume Discounts | F85: ='2024 FALL CALCULATOR'!E96 -> 0
B86: ='2024 FALL CALCULATOR'!B97 -> Off Invoice Volume Discount | F86: ='2024 FALL CALCULATOR'!E97 -> 0
B87: ='2024 FALL CALCULATOR'!B98 -> Invoice Total | F87: ='2024 FALL CALCULATOR'!E98 -> 0
B88: ='2024 FALL CALCULATOR'!B99 -> Purchase Tier Level (Standard calculation assumes order is invoiced by Oct 31, 2024 and will receive 1% Oct bonus to purchase tier rebate) | F88: ='2024 FALL CALCULATOR'!E99 -> 0
B89: ='2024 FALL CALCULATOR'!B100 -> Rebate (Total Program Purchase must be a minimum of $5,000 to receive rebates) | F89: ='2024 FALL CALCULATOR'!E100 -> 0
B90: ='2024 FALL CALCULATOR'!B101 -> Net Total after Rebate | F90: ='2024 FALL CALCULATOR'!E101 -> 0
B91: ='2024 FALL CALCULATOR'!B102 -> Rebate % (Total Program Purchase must be a minimum of $5,000 to receive rebates) | F91: ='2024 FALL CALCULATOR'!E102 -> 0
B92: ='2024 FALL CALCULATOR'!B103 -> Total Savings (Rebates + Off Invoice Volume Discounts) | F92: ='2024 FALL CALCULATOR'!E103 -> 0
B93: ='2024 FALL CALCULATOR'!B104 -> Total Savings % (Rebates + Off Invoice Volume Discounts) | F93: ='2024 FALL CALCULATOR'!E104 -> 0
B95: =CONCATENATE("Estimated MER points to be earned in the Product Cart: ",TEXT(IF(AND(F89 <>"", F89 > 0),F89*100, 0),"#,##0")) -> Estimated MER points to be earned in the Product Cart: 0

Sheet Pricing (hidden)
A1: 1 | B1: =A1+1 -> 2 | C1: =B1+1 -> 3 | D1: 4 | E1: 5
E3: In Season Price
A4: Product | B4: National | C4: CA | D4: WA | E4: National | F4: CA | G4: WA | H4: Dist Suggested Min Price (DSMP)
A5: 26 GT® | B5: 503.9 | C5: 503.9 | D5: 503.9 | E5: 503.9 | F5: 503.9 | G5: 503.9
A6: Acclaim Accelerate (0.5 gal) | B6: 45.65 | C6: 45.65 | D6: 45.65 | E6: 45.65 | F6: 45.65 | G6: 45.65 | H6: 55
A7: Acclaim Accelerate (2.5 gal) | B7: 219.95 | C7: 219.95 | D7: 219.95 | E7: 219.95 | F7: 219.95 | G7: 219.95 | H7: 265
A8: Acclaim® Extra (1 gal) | B8: 665.2 | C8: 665.2 | D8: 665.2 | E8: 665.2 | F8: 665.2 | G8: 665.2
A9: Altus (64 fl.oz. bottle), 1-15 | B9: 428.4 | C9: 439.22 | D9: 431.4 | E9: 428.4 | F9: 439.22 | G9: 431.4
A10: Altus (64 fl.oz. bottle), 16-31 | B10: 406.98 | C10: 417.26 | D10: 409.82 | E10: 428.4 | F10: 439.22 | G10: 431.4
A11: Altus (64 fl.oz. bottle), 32+ | B11: 385.56 | C11: 395.3 | D11: 388.26 | E11: 428.4 | F11: 439.22 | G11: 431.4
A12: Armada® 50 WDG | B12: 114 | C12: 114 | D12: 114 | E12: 114 | F12: 114 | G12: 114
A13: Banol® | B13: 1254 | C13: 1285.65 | D13: 1262.8 | E13: 1254 | F13: 1285.65 | G13: 1262.8
A14: Castlon™ (1 gal.) | B14: 2600 | C14: N/A | D14: 2618.2 | E14: 2600 | F14: N/A | G14: 2618.2
A15: Castlon™ (16oz.) | B15: 366.5 | C15: N/A | D15: 369.07 | E15: 366.5 | F15: N/A | G15: 369.07
A16: Celsius | B16: 128.4 | C16: 131.64 | D16: 129.3 | E16: 128.4 | F16: 131.64 | G16: 129.3
A17: Celsius XTRA | B17: 166.4 | C17: N/A | D17: 167.56 | E17: 166.4 | F17: N/A | G17: 167.56
A18: Chipco Signature (1-8 units) | B18: 392.8 | C18: 402.72 | D18: 395.54 | E18: 392.8 | F18: 402.72 | G18: 395.54
A19: Chipco Signature (9+ units) | B19: 368.8 | C19: 378.12 | D19: 371.38 | E19: 392.8 | F19: 402.72 | G19: 395.54
A20: Chipco® Choice | B20: 161 | C20: 161 | D20: 161 | E20: 161 | F20: 161 | G20: 161
A21: Densicor® | B21: 739.6 | C21: N/A | D21: 744.78 | E21: 739.6 | F21: N/A | G21: 744.78
A22: Dylox 420 SL | B22: 218.75 | C22: 218.75 | D22: 218.75 | E22: 218.75 | F22: 218.75 | G22: 218.75
A23: Exteris® Stressgard® | B23: 366 | C23: 375.25 | D23: 368.55 | E23: 366 | F23: 375.25 | G23: 368.55
A24: Fiata® Stressgard® | B24: 190 | C24: 194.8 | D24: 191.35 | E24: 190 | F24: 194.8 | G24: 191.35
A25: Forbid® | B25: 244.18 | C25: 244.18 | D25: 244.18 | E25: 244.18 | F25: 244.18 | G25: 244.18
A26: Indemnify® (1-2 units) | B26: 1963.6 | C26: 2013.18 | D26: 1977.34 | E26: 1963.6 | F26: 2013.18 | G26: 1977.34
A27: Indemnify® (3+ units) | B27: 1767.2 | C27: 1811.82 | D27: 1779.58 | E27: 1963.6 | F27: 2013.18 | G27: 1977.34
A28: Interface® Stressgard® (1-5 units) | B28: 561 | C28: 575.15 | D28: 564.95 | E28: 561 | F28: 575.15 | G28: 564.95
A29: Interface® Stressgard® (6+ units) | B29: 494 | C29: 506.45 | D29: 497.45 | E29: 561 | F29: 575.15 | G29: 564.95
A30: Merit 2F | B30: 40.15 | C30: 40.15 | D30: 40.15 | E30: 40.15 | F30: 40.15 | G30: 40.15
A31: Merit® 75 WSP | B31: 102.64 | C31: 102.64 | D31: 102.64 | E31: 102.64 | F31: 102.64 | G31: 102.64
A32: Mirage® Stressgard® | B32: 488 | C32: 500.3 | D32: 491.4 | E32: 488 | F32: 500.3 | G32: 491.4
A33: Prograss® EC | B33: 368.25 | C33: 368.25 | D33: 368.25 | E33: 368.25 | F33: 368.25 | G33: 368.25
A34: Proxy® | B34: 102.25 | C34: 102.25 | D34: 102.25 | E34: 102.25 | F34: 102.25 | G34: 102.25
A35: Resilia ™ | B35: 918.87 | C35: N/A | D35: 925.29 | E35: 918.87 | F35: N/A | G35: 925.29
A36: Revolver® (87 oz. bottle) | B36: 758 | C36: 777.14 | D36: 763.3 | E36: 758 | F36: 777.14 | G36: 763.3
A37: Revolver®(32 oz. bottle) | B37: 288.56 | C37: 288.56 | D37: 288.56 | E37: 288.56 | F37: 288.56 | G37: 288.56
A38: Ronstar® FLO 1 to 11 | B38: 552 | C38: 565.95 | D38: 555.85 | E38: 552 | F38: 565.95 | G38: 555.85
A39: Ronstar® FLO 12 to 39 | B39: 453 | C39: 464.45 | D39: 456.15 | E39: 552 | F39: 565.95 | G39: 555.85
A40: Ronstar® FLO 40+ | B40: 393 | C40: 402.9 | D40: 395.75 | E40: 552 | F40: 565.95 | G40: 555.85
A41: Sencor® 75 | B41: 586 | C41: 586 | D41: 586 | E41: 586 | F41: 586 | G41: 586
A42: Signature XTRA Stressgard (1 to 23) | B42: 210.4 | C42: 215.72 | D42: 211.88 | E42: 210.4 | F42: 215.72 | G42: 211.88
A43: Signature XTRA Stressgard (24+) | B43: 192.8 | C43: 197.66 | D43: 194.14 | E43: 210.4 | F43: 215.72 | G43: 211.88
A44: Specticle® FLO (1-6 units) | B44: 1968.4 | C44: 2018.1 | D44: 1982.18 | E44: 2072 | F44: 2117.06 | G44: 2086.5
A45: Specticle® FLO (14-25 units) | B45: 1657.6 | C45: 1699.46 | D45: 1669.2 | E45: 1778.4 | F45: 1817.08 | G45: 1790.84
A46: Specticle® FLO (7-13 units) | B46: 1895.88 | C46: 1943.76 | D46: 1909.16 | E46: 2072 | F46: 2117.06 | G46: 2086.5
A47: Specticle® FLO (26+ units) | B47: 1533.28 | C47: 1572 | D47: 1544.02 | E47: 1778.4 | F47: 1817.08 | G47: 1790.84
A48: Specticle® G | B48: 128 | C48: 131 | D48: 129 | E48: 128 | F48: 131 | G48: 129
A49: Tartan® Stressgard® (1 to 5 units) | B49: 1033 | C49: 1059.1 | D49: 1040.25 | E49: 1033 | F49: 1059.1 | G49: 1040.25
A50: Tartan® Stressgard® 6+ | B50: 940 | C50: 963.75 | D50: 946.6 | E50: 1033 | F50: 1059.1 | G50: 1040.25
A51: Terradex™ Crabgrass & Broadleaf (1 gal) | B51: 94.62 | C51: 94.62 | D51: 94.62 | E51: 94.62 | F51: 94.62 | G51: 94.62 | H51: 114
A52: Terradex™ Crabgrass & Broadleaf (2.5 gal) | B52: 226.18 | C52: 226.18 | D52: 226.18 | E52: 226.18 | F52: 226.18 | G52: 226.18 | H52: 272.5
A53: Terradex™ Power Premix (2.5 gal) | B53: 186.75 | C53: 186.75 | D53: 186.75 | E53: 186.75 | F53: 186.75 | G53: 186.75 | H53: 225
A54: Terradex™ Power Premix (30 gal) | B54: 2041.8 | C54: 2041.8 | D54: 2041.8 | E54: 2041.8 | F54: 2041.8 | G54: 2041.8 | H54: 2460
A55: Terradex™ Quick Strike (1 gal) | B55: 66.4 | C55: 66.4 | D55: 66.4 | E55: 66.4 | F55: 66.4 | G55: 66.4 | H55: 80
A56: Terradex™ Quick Strike (2.5 gal) | B56: 157.7 | C56: 157.7 | D56: 157.7 | E56: 157.7 | F56: 157.7 | G56: 157.7 | H56: 190
A57: Terradex™ Quick Strike (30 gal) | B57: 1792.8 | C57: 1792.8 | D57: 1792.8 | E57: 1792.8 | F57: 1792.8 | G57: 1792.8 | H57: 2160
A58: Tetrino® | B58: 498 | C58: 510.2 | D58: 501.48 | E58: 498 | F58: 510.2 | G58: 501.48
A59: Topchoice® | B59: 63 | C59: 63 | D59: 63 | E59: 63 | F59: 63 | G59: 63
A60: Tribute® Total | B60: 413.6 | C60: 424.04 | D60: 416.5 | E60: 413.6 | F60: 424.04 | G60: 416.5
A61: Kontos (12-29 units) | B61: 210.52 | C61: N/A | D61: N/A | E61: 221.6 | F61: N/A | G61: N/A
A62: Kontos (30+ units) | B62: 199.44 | C62: N/A | D62: N/A | E62: 221.6 | F62: N/A | G62: N/A
